Cogmind - Beta 16 @@@ ROGUE MODE // 2026.01.21 @ 14:38:16 Player: luckinvolved Result: Destroyed by G-67 Veteran with Plasma Rifle Performance ------------- Evolutions (7) 3500 Regions Visited (34) 6800 Robots Destroyed (421) 2105 Value Destroyed (15036) 15036 Prototype IDs (74) 1480 Alien Tech Used (2) 400 Bonus (9146) 9146 TOTAL SCORE: 38467 Bonus ------- Triggered Max Security 1000 High Alert Combat Kills 2718 Follower Combat Kills 2428 Entered Garrisons 400 Used RIF Installer 1500 Aligned with FarCom 300 Met Data Miner 300 Met Zhirov 300 Scanned by Researcher 500 Friendly Fire -300 Cogmind --------- Core Integrity 0/1300 Matter 15/300 Energy 99/100 System Corruption 25% Temperature Cool (0) Movement Core (50) Location -3/Testing Parts ------- > --- POWER (2) -------- (None) > --- PROPULSION (6) --- (None) > --- UTILITY (10) ----- Improved Target Analyzer > --- WEAPON (3) ------- (None) > --- INVENTORY (5) ---- Light Antimatter Reactor Advanced System Shield Gamma Rifle Coil Gun Advanced Remote Datajack Peak State ------------ > --- POWER ------------ Cooled Antimatter Reactor Quantum Reactor > --- PROPULSION ------- Biometal Medium Treads Biometal Medium Treads Centrium Heavy Treads Advanced Heavy Siege Treads > --- UTILITY ---------- Advanced Power Amplifier Advanced Cooling System Huge Storage Unit Improved Energy Well Advanced Signal Interpreter Improved Target Analyzer Improved Heavy Armor Plating Thermal Shield Improved Shield Generator > --- WEAPON ----------- Helical Railgun Hypervelocity Mass Driver Linear Accelerator > --- INVENTORY -------- Particle Reactor Particle Reactor Micro Antimatter Reactor Heavy Treads Heavy Treads Biometal Medium Treads Biometal Medium Treads Biometal Medium Treads Heavy Armor Plating Centrium Medium Armor Plating Advanced Hacking Suite Advanced System Shield Quantum Rifle Railgun Advanced KE Penetrator Hypervelocity Mass Driver Neutron Missile Launcher Advanced Datajack Advanced Remote Datajack Heavy Pick [Rating: 159] Favorites ----------- Power Micro Nuclear Core Engine Deuterium Engine Power Core Micro Nuclear Core Reactor Quantum Reactor Propulsion Light Treads Treads Light Treads Wheel Armored Wheel Hover Unit Cooled Airjet Flight Unit Nuclear Pulse Thruster Utility Advanced Targeting Computer Device Heat Sink Storage Huge Storage Unit Processor Advanced Targeting Computer Hackware Relay Coupler [NC] Protection Utility Shielding Weapon Particle Gun Energy Gun Particle Gun Ballistic Gun KE Penetrator Ballistic Cannon Linear Accelerator Launcher Heavy Missile Launcher Special Weapon Remote Datajack Impact Weapon Powered Hammer Slashing Weapon Chainsword Piercing Weapon Heavy Pick Special Melee Weapon Improved Datajack Build | -11 -10 -10 -9 -9 -9 -8 -8 -8 -8 -8 -7 -7 -7 -7 -6 -6 -6 -6 -6 -6 -5 -5 -5 -5 -5 -5 -4 -4 -4 -4 -4 -4 -3 -3 ------- Run | Yrd Mat Min Mat Min Exi Min Mat Gar Mat Gar Fac Low Low Dat Pro Fac Was Fac Low Low Fac Was Fac Upp Upp Zhi Pro Fac Ext Cet Arc Hub Res Tes Slots Evolved 14 | . . . 2 . . . 2 . . . 2 . . . . 2 . . . . 2 . . . . . . 2 . . . . 2 . Power 1 | . . . . . . . . . . . . . . . . . . . . . . . . . . . . 1 . . . . . . Propulsion 4 | . . . . . . . 1 . . . 1 . . . . . . . . . 1 . . . . . . 1 . . . . . . Utility 8 | . . . 2 . . . 1 . . . 1 . . . . 2 . . . . 1 . . . . . . . . . . . 1 . Weapon 1 | . . . . . . . . . . . . . . . . . . . . . . . . . . . . . . . . . 1 . Parts Attached 289 | 6 14 . 23 3 . 1 22 7 1 12 32 2 . . 2 4 1 12 1 2 31 2 12 1 2 2 2 21 17 5 2 6 35 6 Power 30 | 1 1 . 3 1 . . 1 2 . 1 1 . . . . 1 . 1 . . 1 1 2 . . 1 . 2 4 1 1 . 4 . Engine 11 | 1 1 . 3 1 . . 1 1 . . . . . . . . . . . . . . 2 . . . . 1 . . . . . . Core 8 | . . . . . . . . 1 . 1 1 . . . . 1 . 1 . . 1 . . . . . . . 2 . . . . . Reactor 11 | . . . . . . . . . . . . . . . . . . . . . . 1 . . . 1 . 1 2 1 1 . 4 . Propulsion 77 | 2 3 . 5 1 . 1 7 4 1 4 10 . . . . . . 4 . . 9 . 3 . 1 . 1 8 3 1 . . 8 1 Treads 42 | 2 3 . 5 1 . 1 6 4 1 3 . . . . . . . . . . 3 . . . . . . 1 2 1 . . 8 1 Leg . | . . . . . . . . . . . . . . . . . . . . . . . . . . . . . . . . . . . Wheel 2 | . . . . . . . . . . 1 . . . . . . . . . . 1 . . . . . . . . . . . . . Hover 29 | . . . . . . . . . . . 8 . . . . . . 4 . . 5 . 2 . 1 . 1 7 1 . . . . . Flight 4 | . . . . . . . 1 . . . 2 . . . . . . . . . . . 1 . . . . . . . . . . . Utility 120 | 1 5 . 10 1 . . 7 1 . 3 14 . . . . 3 1 6 . 2 15 1 6 1 1 1 . 6 6 2 1 6 16 4 Device 54 | . 1 . 5 . . . 1 1 . 1 5 . . . . . . 4 . . 9 . 2 1 1 1 . 2 3 1 . 2 12 2 Storage 15 | 1 2 . 2 . . . 1 . . . 2 . . . . . . . . . . . 3 . . . . 1 2 . . . 1 . Processor 20 | . 2 . . . . . 3 . . . 3 . . . . . . 1 . 2 4 1 1 . . . . 1 . . . 2 . . Hackware 9 | . . . . . . . . . . . 3 . . . . 2 . 1 . . 2 . . . . . . 1 . . . . . . Protection 22 | . . . 3 1 . . 2 . . 2 1 . . . . 1 1 . . . . . . . . . . 1 1 1 1 2 3 2 Artifact . | . . . . . . . . . . . . . . . . . . . . . . . . . . . . . . . . . . . Weapon 62 | 2 5 . 5 . . . 7 . . 4 7 2 . . 2 . . 1 1 . 6 . 1 . . . 1 5 4 1 . . 7 1 Energy Gun 18 | . 5 . 3 . . . 4 . . 3 1 . . . . . . . . . . . . . . . . . 1 . . . 1 . Energy Cannon . | . . . . . . . . . . . . . . . . . . . . . . . . . . . . . . . . . . . Ballistic Gun 9 | 2 . . . . . . . . . . . . . . . . . . . . 2 . . . . . . . 2 1 . . 2 . Ballistic Cannon 4 | . . . . . . . . . . . . . . . . . . . . . . . . . . . . . 1 . . . 3 . Launcher 14 | . . . 2 . . . 1 . . 1 1 2 . . 1 . . . 1 . 2 . . . . . . 2 . . . . 1 . Special Weapon 5 | . . . . . . . . . . . 2 . . . . . . . . . 2 . . . . . 1 . . . . . . . Impact Weapon 2 | . . . . . . . . . . . 1 . . . . . . 1 . . . . . . . . . . . . . . . . Slashing Weapon 6 | . . . . . . . 1 . . . 2 . . . . . . . . . . . . . . . . 2 . . . . . 1 Piercing Weapon 2 | . . . . . . . . . . . . . . . 1 . . . . . . . 1 . . . . . . . . . . . Special Melee Weapon 2 | . . . . . . . 1 . . . . . . . . . . . . . . . . . . . . 1 . . . . . . Unidentified Prototypes 28 | . 1 . . . . . 3 . . . 3 . . . . . . . . . 5 . 2 . . 3 . 3 . 3 . 2 3 . Corrupted Parts 8 | . . . . . . . . . . . . . . . . . . . . . . . . . . . . 1 5 1 . . 1 . System Corruption 47 | . . . . . . . . . . . . . . . . . . . . . . . . . . . . 6 29 3 . . 9 . Parts Lost 107 | . 2 . 7 2 . . 6 8 2 4 2 . 2 . . 2 . 9 3 . 2 . 3 . 2 . 2 2 11 . 2 4 16 14 Power 10 | . . . 1 1 . . . 1 . . . . . . . . . . . . . . . . . . . . 2 . . . 3 2 Propulsion 37 | . . . . 1 . . 2 5 2 1 . . . . . 1 . 4 . . . . . . 1 . 2 1 5 . . 1 5 6 Utility 39 | . 1 . 4 . . . 2 . . 2 2 . 2 . . 1 . 3 2 . 1 . 1 . . . . 1 2 . 1 2 6 6 Weapon 21 | . 1 . 2 . . . 2 2 . 1 . . . . . . . 2 1 . 1 . 2 . 1 . . . 2 . 1 1 2 . Highest Loss Streak 10 | . 1 . 2 2 . . 2 2 2 2 1 . 2 . . 2 . 5 6 . 2 . 3 . 2 . 2 1 3 . 2 1 4 10 To Critical Strikes 4 | . . . . . . . . . 1 . . . . . . . . . . . . . . . . . . . . . . . . 3 Average Backups 16 | 3 10 15 20 22 23 24 24 23 22 24 10 10 9 9 9 9 10 9 8 8 7 7 8 11 11 11 11 12 12 13 12 10 18 14 Power 1 | . 1 2 2 2 3 3 2 1 3 3 . . . . . . 1 1 1 1 . . . 2 2 2 2 . . 2 1 . 2 1 Propulsion 4 | 1 4 6 7 8 8 8 7 5 4 5 . . . . . . . . 1 1 2 4 4 7 6 6 5 4 2 1 2 1 3 . Utility 4 | . 2 4 4 4 5 5 6 7 8 6 4 4 3 3 2 2 3 2 2 2 1 . . 1 1 2 3 5 4 2 2 3 5 3 Weapon 4 | . 2 3 4 6 6 6 6 6 5 7 3 5 5 5 5 4 4 3 3 3 2 2 1 . . . . 2 2 5 5 3 5 6 Tool/Special . | . . . . . . . . . . . . . . . . . . . . . . . . . . . . . . . . . . . Unused Backups 63 | . 3 . 4 . . . 7 . 1 5 15 . . . . . . 1 . . 1 . . . . . 1 2 1 1 1 1 7 12 Power 10 | . . . . . . . 3 . . 1 1 . . . . . . . . . . . . . . . . 1 . 1 . . . 3 Propulsion 7 | . 1 . 1 . . . . . . . 3 . . . . . . . . . . . . . . . . . . . . . 2 . Utility 24 | . . . 3 . . . 1 . 1 1 7 . . . . . . . . . 1 . . . . . 1 1 1 . 1 . 3 3 Weapon 18 | . 2 . . . . . 2 . . 3 4 . . . . . . . . . . . . . . . . . . . . 1 1 5 Tool/Special 4 | . . . . . . . 1 . . . . . . . . . . 1 . . . . . . . . . . . . . . 1 1 Average Slot Usage (%) 93 | . 98 100 96 98 100 100 99 98 100 99 97 100 93 92 92 91 93 91 51 42 85 94 97 98 99 90 96 97 84 84 83 82 84 65 Engine 4 | . 14 14 10 10 11 11 9 6 . . . . . . . . . . . . . . 3 5 5 2 . 4 1 . . . . . Core 2 | . . . . . . . . 2 9 9 7 7 7 7 7 6 6 6 6 6 5 4 1 . . . . . 2 1 . . . . Reactor 1 | . . . . . . . . . . . . . . . . . . . . . . . . . . 2 5 5 4 8 10 10 8 6 Treads 15 | . 28 28 22 22 22 22 26 26 27 25 5 . . . . . . . . . 1 . . . . . . . 9 15 15 15 18 14 Hover 8 | . . . . . . . . . . . 23 30 30 30 30 20 20 22 6 6 22 29 28 29 29 29 28 31 9 . . . . . Device 12 | . 3 . 18 21 22 22 9 9 9 9 8 7 7 7 7 9 4 5 5 . 13 17 14 18 23 23 23 13 9 11 10 12 16 14 Storage 9 | . 14 14 11 11 11 11 9 9 9 9 5 7 7 7 7 6 6 6 6 6 5 5 10 11 11 7 11 10 10 15 15 15 11 6 Processor 9 | . 8 14 . . . . 10 18 18 18 15 7 7 7 7 6 6 10 6 8 12 11 11 11 11 11 11 14 10 10 10 6 9 8 Hackware 4 | . . . . . . . . . . . 7 15 15 15 15 24 26 20 13 13 11 11 11 7 5 5 5 6 9 5 1 . . . Protection 6 | . . . 11 10 11 11 16 9 9 9 5 7 1 . . 2 7 6 . . . . . . . . . . 3 3 8 9 3 2 Energy Gun 9 | . 11 28 21 22 22 22 16 17 18 13 2 . . . . . . . . . . . . . . . . . . . . . . . Ballistic Gun 1 | . 16 . . . . . . . . . . . . . . . . . . . . . . . . . . . 1 10 9 9 5 2 Peak Build Rating 159 | 6 11 10 17 16 17 19 36 35 30 34 53 50 50 47 52 56 53 61 43 37 88 91 95 94 94 94 104 122 128 135 137 142 159 127 Average Rating 56 | 5 8 10 14 15 16 17 31 31 29 32 45 50 47 47 47 51 51 54 35 28 73 83 88 91 93 88 97 114 115 131 136 133 144 85 On Entrance 58 | . 6 10 10 14 16 17 19 32 30 30 34 50 50 47 47 52 51 53 40 28 37 88 84 86 94 90 94 98 111 120 135 137 126 118 Avg Prop Armor Cover (%) 6 | . . . . . . . . . . 17 . . . . . . . . . . 9 . 8 . . . 4 3 3 . . . 4 . Naked Turns . | . . . . . . . . . . . . . . . . . . . . . . . . . . . . . . . . . . . Heaviest Build 180 | 10 31 31 98 98 98 98 102 96 94 102 102 29 29 23 27 30 30 30 27 16 45 33 51 48 50 43 51 67 76 89 99 102 180 155 Greatest Support 235 | 40 40 40 43 43 43 43 66 68 60 60 80 48 48 32 48 36 24 41 20 20 167 45 56 56 56 56 57 71 234 235 235 235 230 205 Greatest Overweight (x) 9 | . . . 2 2 2 2 2 2 1 8 9 . . . . 1 1 1 1 . 1 . 1 1 1 . 1 3 1 . . . 1 1 Average Overweight (x) . | . . . 1 2 2 2 1 1 1 2 . . . . . . 1 . . . . . . . . . . . . . . . . . Largest Inventory Capacity 25 | 8 15 15 25 25 25 25 25 25 25 25 25 10 10 10 10 10 10 10 10 10 10 10 15 15 15 15 15 15 15 15 15 15 25 25 Average Capacity 18 | 7 12 15 22 25 25 25 25 25 25 25 11 10 10 10 10 10 10 10 10 10 10 10 12 15 15 15 15 15 15 15 15 15 24 18 Most Carried 25 | 5 15 15 25 25 24 25 25 25 25 25 25 10 10 9 10 10 10 10 9 8 10 10 15 15 15 15 15 15 15 15 15 15 25 21 Average Carried 17 | 3 10 15 20 22 23 24 24 23 22 24 10 10 9 9 9 9 10 9 8 8 8 9 11 14 14 14 14 14 14 14 14 14 21 15 Final Capacity 25 | 8 15 15 25 25 25 25 25 25 25 25 10 10 10 10 10 10 10 10 10 10 10 10 15 15 15 15 15 15 15 15 15 15 25 5 Final Carried 25 | 5 15 15 25 23 24 25 25 23 25 25 10 10 9 9 9 10 10 8 8 8 10 10 15 14 14 15 14 15 15 15 15 15 20 5 Class Distribution -------------------- 43% | Mutant 26% | Scavenger-Mutant 9% | Sprinter 6% | Hacker-Mutant 5% | Scavenger-Tank Dominant Class ---------------- Mutant | -10/Materials Mutant | -10/Mines Mutant | -9/Materials Scavenger-Mutant | -9/Mines Scavenger-Mutant | -9/Exiles Scavenger-Mutant | -8/Mines Mutant | -8/Materials Mutant | -8/Garrison Scavenger-Mutant | -8/Materials Scavenger-Mutant | -8/Garrison Mutant | -7/Factory Hacker-Mutant | -7/Lower Caves Hacker-Mutant | -7/Lower Caves Hacker-Mutant | -7/Data Miner Hacker-Mutant | -6/Proximity Caves Hacker-Mutant | -6/Factory Hacker-Mutant | -6/Waste Hacker-Mutant | -6/Factory Mutant | -6/Lower Caves Mutant | -6/Lower Caves Mutant | -5/Factory Sprinter | -5/Waste Sprinter | -5/Factory Sprinter | -5/Upper Caves Mutant | -5/Upper Caves Sprinter | -5/Zhirov Sprinter | -4/Proximity Caves Sprinter | -4/Factory Commander-Mutant | -4/Extension Scavenger-Mutant | -4/Cetus Scavenger-Mutant | -4/Archives Scavenger-Mutant | -4/Hub_04(d) Scavenger-Tank | -3/Research Scavenger-Skirmisher | -3/Testing Resources | -11 -10 -10 -9 -9 -9 -8 -8 -8 -8 -8 -7 -7 -7 -7 -6 -6 -6 -6 -6 -6 -5 -5 -5 -5 -5 -5 -4 -4 -4 -4 -4 -4 -3 -3 ----------- Run | Yrd Mat Min Mat Min Exi Min Mat Gar Mat Gar Fac Low Low Dat Pro Fac Was Fac Low Low Fac Was Fac Upp Upp Zhi Pro Fac Ext Cet Arc Hub Res Tes Matter Collected 9755 | 286 241 . 424 45 . 10 431 128 20 318 578 191 31 . 69 . 175 231 83 86 834 . 822 20 10 66 64 477 1247 145 174 418 1931 200 Remotely . | . . . . . . . . . . . . . . . . . . . . . . . . . . . . . . . . . . . Salvage Created 19130 | 89 728 . 2024 77 . . 1479 1206 148 601 929 61 21 . 5 . 231 1116 186 . 1239 . 1258 . . 424 . 1123 1790 52 190 1142 2686 325 Parts 870 | 4 36 . 115 2 . . 84 45 10 35 58 7 2 . . . 9 57 6 . 29 . 41 . . 9 . 59 66 1 11 54 112 18 Haulers Intercepted 35 | . 2 . 6 . . . 3 . . . 3 . . . . . . 2 . . 5 . 6 . . . . 3 1 . . . 3 1 Recyclers Shooed 8 | . . . 1 . . . . . . . . . . . . . . 2 . . 2 . . . . . . 1 . . . . 2 . Parts Field Recycled . | . . . . . . . . . . . . . . . . . . . . . . . . . . . . . . . . . . . Retrieved Matter . | . . . . . . . . . . . . . . . . . . . . . . . . . . . . . . . . . . . Parts Self-Destructed 27 | . . . . . . . . . . . . 6 2 . . . . . 5 . . . . . . 7 7 . . . . . . . Prevented 1 | . . . . . . . . . . . . . . . . . . . . . . . . . 1 . . . . . . . . . Parts Restored . | . . . . . . . . . . . . . . . . . . . . . . . . . . . . . . . . . . . Kills | -11 -10 -10 -9 -9 -9 -8 -8 -8 -8 -8 -7 -7 -7 -7 -6 -6 -6 -6 -6 -6 -5 -5 -5 -5 -5 -5 -4 -4 -4 -4 -4 -4 -3 -3 ------- Run | Yrd Mat Min Mat Min Exi Min Mat Gar Mat Gar Fac Low Low Dat Pro Fac Was Fac Low Low Fac Was Fac Upp Upp Zhi Pro Fac Ext Cet Arc Hub Res Tes Combat Hostiles Destroyed 278 | . 12 . 49 2 . . 29 24 3 16 13 4 1 . 1 . 1 1 9 . 19 . 16 . . . . 4 28 1 2 9 29 5 Melee 16 | . . . . . . . . . . . 3 . 1 . . . 1 1 1 . . . 3 . . . . 2 4 . . . . . Guns 129 | . 12 . 30 2 . . 18 22 3 11 2 . . . . . . . . . 2 . . . . . . . 2 1 2 9 12 1 Cannons 32 | . . . . . . . . . . . . . . . . . . . . . . . . . . . . . 12 . . . 17 3 AOE 91 | . . . 17 . . . 9 . . 5 5 4 . . 1 . . . 8 . 17 . 13 . . . . 2 9 . . . . 1 Classes Destroyed 22 | 2 3 . 6 1 . . 2 1 . . . . . . . . 1 1 1 . . . . . . . . . 1 . . 2 . 1 Worker 21 | . . . . . . . 5 . . . 1 . . . . . . 3 . . 1 . 1 . . . . 1 6 . . 3 . . Builder 26 | . . . 1 . . . . . . . 5 . . . . . . 6 . . 5 . 1 . . . . 2 4 . . 1 . 1 Tunneler 6 | 1 . . 1 . . . . . . . . . . . . . . 1 . . . . 1 . . . . . 1 . . . 1 . Hauler 35 | . 2 . 6 . . . 3 . . . 3 . . . . . . 2 . . 5 . 6 . . . . 3 1 . . . 3 1 Recycler 32 | 1 1 . 1 . . . 3 . . . 4 . . . . . . 4 . . 3 . 2 . . . . 4 1 . . 3 5 . Mechanic 4 | . . . . . . . . . . . . . . . . . . 1 . . 1 . . . . . . 2 . . . . . . Operator 5 | . . . 2 . . . . . . . 1 . . . . . . . . . . . . . . . . 1 1 . . . . . Watcher 12 | . 2 . 3 . . . 3 . . . 1 . . . . . . . . . 1 . 1 . . . . . . . . . . 1 Swarmer 61 | . . . 11 . . . 8 . . 4 6 4 1 . . . . . 7 . 9 . 4 . . . . . 7 . . . . . Saboteur 1 | . . . . . . . . . . . . . . . . . . . . . . . . . . . . . . . . . . 1 Grunt 122 | . 12 . 26 1 . . 13 20 . 9 3 . . . . . . . . . 6 . 8 . . . . . 10 . . 3 9 2 Brawler 3 | . . . 2 . . . . . . . . . . . . . . . . . . . . . . . . . . . . . 1 . Duelist 3 | . . . . 1 . . . . . . . . . . . . . . . . . . . . . . . . 2 . . . . . Protector 1 | . . . 1 . . . . . . . . . . . . . . . . . . . . . . . . . . . . . . . Sentry 31 | . . . 9 . . . 7 2 1 3 . . . . . . . . . . . . . . . . . . 3 . 2 1 3 . Specialist 4 | . . . . . . . . . . . . . . . . . . . . . . . . . . . . . . . . 2 2 . Hunter 14 | . . . . . . . 1 . 2 . . . . . . . . . 2 . 2 . . . . . . . 1 . . 2 4 . Programmer 33 | . . . . . . . . 2 . . 4 . . . 1 . . 1 . . 2 . 4 . . . . 4 3 . . . 10 2 Heavy 1 | . . . . . . . . . . . . . . . . . . . . . . . . . . . . . . . . 1 . . Behemoth 2 | . . . . . . . . . . . . . . . . . . . . . . . . . . . . . 2 . . . . . Compactor 1 | . . . . . . . . . . . . . . . . . 1 . . . . . . . . . . . . . . . . . Cetus Guard 1 | . . . . . . . . . . . . . . . . . . . . . . . . . . . . . . 1 . . . . Samaritan 1 | . . . . . . . . . . . . . . . . . . . 1 . . . . . . . . . . . . . . . Savage 1 | . . . . . . . . . . . . . . . . . . . . . . . . . . . . . 1 . . . . . Butcher 1 | . . . . . . . . . . . . . . . . . . . . . . . . . . . . . 1 . . . . . Best Kill Streak 15 | 1 5 . 7 2 . . 7 3 1 5 5 4 1 . 1 . 1 6 5 . 15 . 7 . . . . 5 10 1 2 12 5 5 Combat Bots Only 12 | . 4 . 7 2 . . 3 3 1 5 3 4 1 . 1 . 1 1 4 . 12 . 6 . . . . 2 10 1 2 5 5 3 Max Kills in Single Turn 6 | 1 1 . 3 1 . . 4 1 1 3 2 2 1 . 1 . 1 1 2 . 6 . 5 . . . . 2 5 1 1 1 1 3 Gunslinging 1 | . . . 1 . . . 1 . . . . . . . . . . . . . . . . . . . . . . . . . . . Exploded 5 | . . . 3 . . . 3 . . 3 1 2 . . 1 . . . 2 . 5 . 4 . . . . 2 4 . . . . 1 Melee 1 | . . . . . . . . . . . 1 . 1 . . . 1 1 1 . . . 1 . . . . 1 1 . . . . . Uniques/NPCs Destroyed . | . . . . . . . . . . . . . . . . . . . . . . . . . . . . . . . . . . . Combat | -11 -10 -10 -9 -9 -9 -8 -8 -8 -8 -8 -7 -7 -7 -7 -6 -6 -6 -6 -6 -6 -5 -5 -5 -5 -5 -5 -4 -4 -4 -4 -4 -4 -3 -3 -------- Run | Yrd Mat Min Mat Min Exi Min Mat Gar Mat Gar Fac Low Low Dat Pro Fac Was Fac Low Low Fac Was Fac Upp Upp Zhi Pro Fac Ext Cet Arc Hub Res Tes Hostile Shots Fired 2015 | . 69 . 174 8 . . 133 126 26 43 59 9 19 . 14 3 . 85 33 . 52 . 57 1 8 . 22 49 203 17 49 160 390 206 Missed 624 | . 15 . 52 2 . . 37 31 10 13 25 2 12 . 2 . . 32 10 . 26 . 25 . 3 . 13 17 87 2 7 36 92 73 Hits 1391 | . 54 . 122 6 . . 96 95 16 30 34 7 7 . 12 3 . 53 23 . 26 . 32 1 5 . 9 32 116 15 42 124 298 133 Melee 19 | . . . . 2 . . . . . . . . . . . . . . . . . . . . . . 1 . 13 . . . . 3 Projectile 1372 | . 54 . 122 4 . . 96 95 16 30 34 7 7 . 12 3 . 53 23 . 26 . 32 1 5 . 8 32 103 15 42 124 298 130 AOE 1 | . . . . . . . . . . . . . . . . . . . . . . . 1 . . . . . . . . . . . Critical Strikes 78 | . . . 2 2 . . 5 6 2 1 2 1 . . . . . 3 . . 1 . . . 1 . 1 2 7 2 1 11 15 13 Actively Blocked 2 | . . . 1 . . . . 1 . . . . . . . . . . . . . . . . . . . . . . . . . . Part Disruptions 9 | . . . . . . . . . . . 2 . . . . . . . . . . . . . . . 1 3 . . . 1 2 . Actively Blocked 1 | . . . . . . . . . . . 1 . . . . . . . . . . . . . . . . . . . . . . . Damage Taken 22372 | . 670 . 1512 106 . . 1393 1506 179 432 616 98 91 . 180 56 . 911 478 . 538 41 761 19 102 . 183 650 2225 186 659 1618 4656 2506 Core 3394 | . 101 . 294 40 . . 120 290 . 35 65 41 32 . 14 . . 222 170 . 39 . 179 19 30 . 44 136 192 11 . 14 179 1127 Absorbed by Shields 2724 | . . . . . . . . 58 . . . . . . . . . 33 . . . . . . . . . . 149 196 446 1025 817 . Reduced by Siege Mode 1022 | . . . . . . . . . . . . . . . . . . . . . 58 . . . . . . . 313 37 82 281 251 . Redirected to Shielding 380 | . . . 104 . . . 16 32 . 2 85 8 7 . . . . 111 . . . . . . . . . . . . . . . 15 Ignored by Resistances 555 | . . . . . . . . . . . . . . . . . . . . . . . . . . . . . . . . . 502 53 Regen/Repaired (Parts) 1369 | . . . 38 . . . 42 . . . 61 . . . . . . . . . 88 46 . . . . . 1094 . . . . . . Core Remaining (%) 57 | 100 . 59 . . . 16 . . . 19 . . . . 78 . . . . 53 . . . . . . 64 . . . . 69 . . Volleys Fired 782 | 13 61 . 126 6 . . 89 76 7 31 31 5 . . 5 . 7 8 8 . 28 . 9 . . . 4 4 52 11 17 44 121 19 Largest 3 | 2 2 . 2 2 . . 2 2 2 2 2 1 . . 1 . 1 1 1 . 2 . 1 . . . 1 1 2 2 2 2 3 3 Hottest 188 | 40 130 . 130 112 . . 124 126 126 138 138 39 . . 39 . 5 5 43 . 93 . 50 . . . . 49 98 66 68 68 188 159 Shots Fired 1448 | 26 121 . 245 12 . . 163 154 14 62 44 5 . . 5 . 7 8 8 . 32 . 9 . . . 4 4 58 19 31 76 285 56 Gun 1113 | 26 121 . 230 12 . . 152 154 14 59 26 . . . . . . . . . 21 . . . . . . . 9 19 31 76 146 17 Cannon 203 | . . . . . . . . . . . . . . . . . . . . . . . . . . . . . 27 . . . 139 37 Launcher 97 | . . . 15 . . . 11 . . 3 6 5 . . 5 . . . 8 . 10 . 7 . . . . 3 22 . . . . 2 Special 35 | . . . . . . . . . . . 12 . . . . . 7 8 . . 1 . 2 . . . 4 1 . . . . . . Kinetic 599 | 26 91 . . . . . . . . . . . . . . . . . . . 21 . . . . . . . 36 19 31 76 245 54 Thermal 715 | . 28 . 230 12 . . 152 154 14 59 26 . . . . . . . . . . . . . . . . . . . . . 40 . Explosive 89 | . . . 15 . . . 11 . . 3 6 5 . . 5 . . . 8 . 10 . 7 . . . . 2 15 . . . . 2 Electromagnetic 10 | . 2 . . . . . . . . . . . . . . . . . . . . . . . . . . 1 7 . . . . . Robot Hit Streak 30 | 5 10 . 19 15 . . 19 30 10 14 14 3 . . . . 5 7 1 . 13 . 8 . . . 2 4 14 5 13 13 30 11 Robot Miss Streak 7 | 2 4 . 4 . . . 2 3 1 2 2 1 . . . . 3 1 2 . 3 . 7 . . . 1 . 4 2 3 2 5 4 Penetration Max 3 | . . . . . . . . . . . . . . . . . . . . . . . . . . . . . 3 1 . 1 1 1 Secondary Targets 7 | . 1 . 2 . . . 1 3 . . . . . . . . . . . . . . . . . . . . . . . . . . Max Gunslinging Chain 1 | . 1 . 1 . . . 1 1 . . . . . . . . . . . . . . . . . . . . . . . . . . Shots Hit Robots 1205 | 17 88 . 157 11 . . 128 131 11 46 58 2 2 . . . 20 40 3 . 45 . 36 . . 6 3 28 46 15 23 61 195 33 Core Hits 709 | 4 35 . 84 4 . . 65 49 6 27 33 9 1 . 1 . 3 12 14 . 69 . 58 . . 4 . 15 79 8 7 36 69 17 Critical Kills 38 | . . . . . . . . . . . 2 . . . . . . . . . . . . . . . . . 9 . . 3 20 4 Critical Parts Destroyed 67 | . . . . . . . . . . . 2 . . . . . . . . . 5 . 1 . . . . . 16 2 1 4 28 8 Critical Strikes 154 | . . . 10 . . . 8 5 1 1 8 . . . . . 2 6 . . 5 . 2 . . . . 2 26 2 1 7 55 13 Burn 28 | . . . 10 . . . 8 5 1 1 3 . . . . . . . . . . . . . . . . . . . . . . . Destroy 100 | . . . . . . . . . . . . . . . . . . . . . . . . . . . . . 25 2 1 7 53 12 Blast 3 | . . . . . . . . . . . . . . . . . . . . . . . . . . . . . . . . . 2 1 Smash 10 | . . . . . . . . . . . 4 . . . . . . . . . 5 . 1 . . . . . . . . . . . Sever 3 | . . . . . . . . . . . 1 . . . . . . . . . . . . . . . . 2 . . . . . . Impale 10 | . . . . . . . . . . . . . . . . . 2 6 . . . . 1 . . . . . 1 . . . . . Melee Attacks 395 | . . . . . . . 3 1 . 11 79 1 7 . 2 7 15 61 2 . 44 . 48 . . 6 2 63 11 . . . 28 4 Impact 97 | . . . . . . . . . . . 35 . . . . . . 10 2 . 44 . 6 . . . . . . . . . . . Slashing 85 | . . . . . . . 3 1 . 11 35 1 7 . 2 . . . . . . . . . . . . 21 . . . . . 4 Piercing 203 | . . . . . . . . . . . . . . . . 7 15 51 . . . . 42 . . 6 2 42 10 . . . 28 . Sneak Attacks 90 | . . . . . . . . . . . 18 . . . . . 15 19 1 . 13 . 10 . . . . 10 4 . . . . . Combat Hostiles 17 | . . . . . . . . . . . . . . . . . 15 . . . . . 1 . . . . . 1 . . . . . Follow-up Attacks . | . . . . . . . . . . . . . . . . . . . . . . . . . . . . . . . . . . . Damage Inflicted 44498 | 135 886 . 3484 163 . . 2942 2277 184 1223 2155 656 75 . 186 . 470 1891 941 . 4590 . 3331 . . 503 . 2334 5545 531 574 1887 5812 1723 Guns 16431 | 135 883 . 2361 163 . . 1982 2277 184 808 465 . . . . . . . . . 536 . . . . . . . 234 531 574 1887 3189 222 Cannons 4277 | . . . . . . . . . . . . . . . . . . . . . . . . . . . . . 965 . . . 2623 689 Explosions 13266 | . . . 1118 . . . 949 . . 415 421 568 . . 186 . . . 794 . 2383 . 1629 . . . . 235 3906 . . . . 662 Melee 10406 | . . . . . . . . . . . 1269 88 75 . . . 470 1891 147 . 1671 . 1702 . . 503 . 2099 440 . . . . 51 Ramming 118 | . 3 . 5 . . . 11 . . . . . . . . . . . . . . . . . . . . . . . . . . 99 Kinetic 11176 | 135 529 . . . . . . . . . . . . . . . . . . . 536 . . . . . . . 1199 531 574 1887 4874 911 Thermal 10028 | . 308 . 2361 163 . . 1982 2277 184 808 465 . . . . . . . . . . . 448 . . . . . 94 . . . 938 . Explosive 11719 | . . . 1118 . . . 949 . . 415 421 568 . . 186 . . . 794 . 2383 . 1181 . . . . 219 2823 . . . . 662 Electromagnetic 1051 | . 46 . . . . . . . . . . . . . . . . . . . . . . . . . . 16 989 . . . . . Impact 3041 | . . . . . . . . . . . 598 . . . . . . 272 147 . 1671 . 353 . . . . . . . . . . . Slashing 2177 | . . . . . . . . . . . 671 88 75 . . . . . . . . . . . . . . 1292 . . . . . 51 Piercing 5188 | . . . . . . . . . . . . . . . . . 470 1619 . . . . 1349 . . 503 . 807 440 . . . . . Highest Corruption 45 | . . . . . . . . 3 3 3 6 1 1 1 2 . 24 26 26 26 1 1 5 5 5 5 6 12 41 44 44 45 22 25 Average Corruption 11 | . . . . . . . . 2 3 3 4 1 1 1 1 . 13 24 26 26 1 1 1 5 5 5 5 9 19 43 44 44 10 23 Corruption Purged 5 | . . . . . . . . . . . 5 . . . . . . . . . . . . . . . . . . . . . . . Corruption Blocked . | . . . . . . . . . . . . . . . . . . . . . . . . . . . . . . . . . . . Effects 437 | . . . . . . . . 9 2 21 47 4 1 . 2 . 10 44 12 2 5 1 10 2 5 4 9 17 59 24 15 31 78 23 Message Errors 101 | . . . . . . . . 1 1 4 10 . . . . . 1 7 5 1 1 . 5 . 3 1 3 8 14 4 2 9 17 4 Matter Fused 75 | . . . . . . . . 2 . 8 8 1 . . . . 3 6 1 . 2 1 2 . . 2 1 3 8 5 2 5 9 6 Heat Flow Errors 52 | . . . . . . . . 1 . 1 8 1 1 . . . 3 7 . . . . 1 . . . 2 2 6 3 3 3 6 4 Energy Discharges 37 | . . . . . . . . 2 . 1 4 . . . 1 . 1 5 1 . 2 . 1 . . . . 1 4 1 . 3 9 1 Parts Rejected 8 | . . . . . . . . . . . . . . . . . . 2 . . . . . . . . . . 1 . . . 4 1 Parts Fused 11 | . . . . . . . . . . . 3 1 . . . . 1 . 1 . . . . . . . . . 1 1 . . 2 1 Data Loss (minor) 63 | . . . . . . . . 1 1 3 10 1 . . . . 1 6 3 . . . 1 1 1 1 1 2 14 2 1 3 10 . Data Loss (major) 19 | . . . . . . . . . . 1 2 . . . . . . 3 . 1 . . . 1 1 . 2 1 3 1 1 . 2 . Misfires 12 | . . . . . . . . 2 . 1 . . . . . . . . . . . . . . . . . . 1 . 1 1 5 1 Alerts 14 | . . . . . . . . . . 1 2 . . . 1 . . 3 . . . . . . . . . . 3 . 1 . 3 . Misdirections 16 | . . . . . . . . . . . . . . . . . . 5 1 . . . . . . . . . . 4 . 2 1 3 Weapon Failures 29 | . . . . . . . . . . 1 . . . . . . . . . . . . . . . . . . 4 3 4 5 10 2 Overload Shots . | . . . . . . . . . . . . . . . . . . . . . . . . . . . . . . . . . . . Overflow Damage 3080 | . . . 6 . . . 36 . . 8 246 123 . . 17 . . 464 196 . 843 . 403 . . 108 . 372 139 . . . 70 49 Projectiles 70 | . . . . . . . . . . . . . . . . . . . . . . . . . . . . . . . . . 70 . Explosions 534 | . . . 6 . . . 36 . . 8 . 123 . . 17 . . . 75 . 10 . 126 . . . . . 97 . . . . 36 Melee 2476 | . . . . . . . . . . . 246 . . . . . . 464 121 . 833 . 277 . . 108 . 372 42 . . . . 13 Knockbacks 50 | . . . . . . . . . . . 4 . . . . . . 2 . . 5 . . . . . . . 3 . . . 29 7 Impact 12 | . . . . . . . . . . . 4 . . . . . . 2 . . 5 . . . . . . . . . . . . 1 Kinetic 36 | . . . . . . . . . . . . . . . . . . . . . . . . . . . . . 2 . . . 28 6 Secondary 2 | . . . . . . . . . . . . . . . . . . . . . . . . . . . . . 1 . . . 1 . Self-Inflicted Damage 467 | . . . 107 . . . 20 . . . . . . . . . . . 151 . . . 96 . . . . . 4 . . . . 89 Shots 15 | . . . 4 . . . 1 . . . . . . . . . . . 3 . . . 4 . . . . . 1 . . . . 2 Rammed 6 | . 1 . 1 . . . . . . . . . . . . . . . . . . . . . . . . . . . . 1 . 3 Targets Rammed 8 | . 1 . 1 . . . 2 . . . . . . . . . . . . . . . . . . . . . . . . 1 . 3 Kicked . | . . . . . . . . . . . . . . . . . . . . . . . . . . . . . . . . . . . Crushed 2 | . . . . . . . 2 . . . . . . . . . . . . . . . . . . . . . . . . . . . Highest Temperature 336 | . 319 . 219 27 . . 132 260 33 233 206 207 83 . . . 270 244 . . 270 2 305 322 325 . 255 335 336 246 234 161 158 214 Average Temperature 67 | . 67 . 60 15 . . 26 50 13 55 73 78 42 . . . 118 89 . . 68 2 84 167 129 . 86 80 108 112 119 54 26 84 Received Heat Transfer 4497 | . 366 . 516 24 . . 612 668 9 144 51 18 6 . . 27 . . . . 18 . 48 . 351 . 9 . 193 . 69 204 749 415 Effects 6 | . . . . . . . . . . . . . . . . . . . . . . . 1 1 . . . 3 1 . . . . . Shutdowns 1 | . . . . . . . . . . . . . . . . . . . . . . . . . . . . . 1 . . . . . Energy Bleed 1 | . . . . . . . . . . . . . . . . . . . . . . . . 1 . . . . . . . . . . Interference 4 | . . . . . . . . . . . . . . . . . . . . . . . 1 . . . . 3 . . . . . . Siege Activations 15 | . . . . . . . . . . . . . . . . . . . . . 1 . . . . . . . 3 1 1 2 7 . Total Turns 520 | . . . . . . . . . . . . . . . . . . . . . 70 . . . . . . . 82 18 23 136 191 . Longest Duration 90 | . . . . . . . . . . . . . . . . . . . . . 70 . . . . . . . 57 18 23 90 61 . Martial Activations . | . . . . . . . . . . . . . . . . . . . . . . . . . . . . . . . . . . . Shielding Activations . | . . . . . . . . . . . . . . . . . . . . . . . . . . . . . . . . . . . Robots Disrupted 1 | . . . . . . . . . . . . . . . . . . . . . . . . . . . . 1 . . . . . . Combat Hostiles 1 | . . . . . . . . . . . . . . . . . . . . . . . . . . . . 1 . . . . . . Robots Corrupted 15 | . . . . . . . . . . . 2 . . . . . . 1 1 . 8 . 1 . . . . . 1 . . . . 1 Combat Hostiles 2 | . . . . . . . . . . . 1 . . . . . . . . . . . . . . . . . 1 . . . . . Parts Fried 33 | . . . . . . . . . . . 4 . . . . . . 1 1 . 17 . 4 . . . . 4 1 . . . . 1 Impact Corruptions 41 | . . . . . . . . . . . 7 . . . . . . 4 8 . 19 . 2 . . . . . . . . . . 1 Robots Melted 8 | . . . 2 . . . 2 2 . . 2 . . . . . . . . . . . . . . . . . . . . . . . Combat Hostiles 8 | . . . 2 . . . 2 2 . . 2 . . . . . . . . . . . . . . . . . . . . . . . Parts Melted 60 | . . . 20 1 . . 18 11 . 3 5 . . . . . . . . . . . . . . . . . . . . . 2 . Heat Transferred 22471 | . 703 . 6356 407 . . 5143 5122 481 1739 1073 . . . . . . . . . . . 250 . . . . . 50 . . . 1147 . Parts Sabotaged . | . . . . . . . . . . . . . . . . . . . . . . . . . . . . . . . . . . . Parts Stolen . | . . . . . . . . . . . . . . . . . . . . . . . . . . . . . . . . . . . Parts Stripped . | . . . . . . . . . . . . . . . . . . . . . . . . . . . . . . . . . . . Power Chain Reactions 3 | . . . . . . . . . . . . . . . . . . . . . . . . . . . . . 2 . . . . 1 Alert | -11 -10 -10 -9 -9 -9 -8 -8 -8 -8 -8 -7 -7 -7 -7 -6 -6 -6 -6 -6 -6 -5 -5 -5 -5 -5 -5 -4 -4 -4 -4 -4 -4 -3 -3 ------- Run | Yrd Mat Min Mat Min Exi Min Mat Gar Mat Gar Fac Low Low Dat Pro Fac Was Fac Low Low Fac Was Fac Upp Upp Zhi Pro Fac Ext Cet Arc Hub Res Tes Maximum Alert Level 5 | . . . 3 1 . . 1 3 2 4 2 . . . . . . . . . 2 . 4 . . . . 1 5 4 2 . 2 5 Low Security (%) 42 | 100 100 100 60 11 . 100 35 . . . . . . . . 100 100 100 . . 40 100 23 . . . . 84 11 . . 100 64 . Level 1 19 | . . . 11 88 . . 64 30 36 6 3 . . . . . . . . . 22 . 1 . . . . 15 22 . 38 . 25 . Level 2 24 | . . . 22 . . . . 35 63 30 96 . . . . . . . . . 36 . 5 . . . . . 34 . 61 . 10 . Level 3 9 | . . . 6 . . . . 33 . 47 . . . . . . . . . . . . 34 . . . . . 16 99 . . . . Level 4 2 | . . . . . . . . . . 15 . . . . . . . . . . . . 35 . . . . . 4 . . . . . Level 5 . | . . . . . . . . . . . . . . . . . . . . . . . . . . . . . 11 . . . . . High Security . | . . . . . . . . . . . . . . . . . . . . . . . . . . . . . . . . . . . Max Security 1 | . . . . . . . . . . . . . . . . . . . . . . . . . . . . . . . . . . 99 Peak Influence 1970 | 5 93 30 869 354 . . 389 1068 520 1236 648 . . . . 55 1 56 . . 569 169 1203 . . . . 246 1970 1106 439 184 616 1780 Initial 1084 | . . 30 2 334 . . . 247 520 244 648 . . . . 12 1 . . . 43 167 88 . . . . 37 116 1084 388 134 84 344 Average 363 | . 23 19 280 270 . . 233 600 428 820 525 . . . . 15 . 13 . . 275 149 781 . . . . 172 702 1035 406 91 163 1672 Influence Increases 14915 | 10 415 7 1662 50 . . 990 901 90 1112 666 95 35 . 30 123 . 300 240 . 894 30 1736 15 45 15 204 519 2694 136 146 300 1136 319 Destroy 0b10 Robot/C 6900 | . 240 . 960 40 . . 580 480 60 520 260 80 20 . 20 . . 20 180 . 380 . 700 . . . 80 100 1160 80 80 180 580 100 Destroy 0b10 Robot/NC 755 | 10 25 . 75 . . . 70 . . . 70 5 . . . . . 85 . . 80 . 75 . . 15 . 65 85 . . 35 45 15 Destroy Leader 1256 | . 48 . 268 10 . . 152 10 30 40 64 10 . . 10 . . 14 30 . 62 . 124 . . . 10 36 130 . . 50 134 24 Allied During Kill 1335 | . . . . . . . . . . 71 2 . . . . . . . . . . . 249 . . . 9 . 946 45 13 . . . Trap Triggered on 0b10 10 | . . . . . . . . . . . . . . . . . . . . . . . . . . . . 10 . . . . . . Successful Hack 465 | . 26 7 18 . . . 15 30 . 7 87 . . . . 26 . 56 . . 68 . 46 . . . . 22 12 7 . . 38 . Select Force Hacks 240 | . 60 . 60 . . . 30 . . . 30 . . . . 30 . . . . . . 30 . . . . . . . . . . . Disable Machine 420 | . . . 15 . . . 30 . . . 15 . . . . . . . . . 30 . 120 . . . . 30 60 . 45 15 45 15 Anti-Garrison Action 700 | . . . . . . . . 350 . 350 . . . . . . . . . . . . . . . . . . . . . . . . Destroy Structure 1529 | . 1 . 86 . . . 68 1 . 49 63 . . . . 7 . 20 . . 214 30 362 . . . . 196 226 4 8 20 84 90 Partial Spotted 135 | . . . . . . . . . . . . . . . . . . . . . 30 . 15 . . . . . 45 . . . 30 15 Lose Combat Pursuer 1170 | . 15 . 180 . . . 45 30 . 75 75 . 15 . . 60 . 105 30 . 30 . 15 15 45 . 105 60 30 . . . 180 60 Influence Decreases 14392 | 10 338 77 810 735 174 . 609 214 782 252 1564 186 128 154 10 140 3 265 164 42 485 381 699 502 269 468 144 341 996 1102 732 524 684 408 Entered New Map 6090 | . . 47 5 525 174 . . 134 548 132 588 126 48 154 . 8 2 . 14 22 26 311 39 432 129 453 . 23 122 852 582 250 76 268 Time Decay 6109 | 10 328 30 735 190 . . 559 . 214 . 656 60 60 . 10 119 1 209 120 20 439 50 380 70 90 15 90 278 474 150 90 214 448 . Lost Part 989 | . 10 . 70 20 . . 50 80 20 40 20 . 20 . . 13 . 56 30 . 20 . 30 . 20 . . 20 110 . 20 40 160 140 Lost Ally 754 | . . . . . . . . . . 80 . . . . . . . . . . . 20 250 . 30 . 54 20 140 100 40 20 . . Purge Threat 450 | . . . . . . . . . . . 300 . . . . . . . . . . . . . . . . . 150 . . . . . Squads Dispatched 113 | . 3 . 13 . . . 4 . . . 20 . . . . 4 . 6 . . 9 . 12 . . . . 6 5 . . 6 11 14 Investigation 44 | . 2 . 7 . . . 2 . . . 11 . . . . 3 . 3 . . 3 . 4 . . . . 4 2 . . . 3 . Extermination 24 | . . . . . . . . . . . 7 . . . . 1 . 2 . . 3 . 3 . . . . 2 . . . 1 5 . Reinforcement 29 | . 1 . 5 . . . 2 . . . 1 . . . . . . 1 . . 3 . 4 . . . . . 2 . . 5 3 2 Assault 16 | . . . 1 . . . . . . . 1 . . . . . . . . . . . 1 . . . . . 1 . . . . 12 Garrison . | . . . . . . . . . . . . . . . . . . . . . . . . . . . . . . . . . . . Intercept . | . . . . . . . . . . . . . . . . . . . . . . . . . . . . . . . . . . . Searches Triggered . | . . . . . . . . . . . . . . . . . . . . . . . . . . . . . . . . . . . Data Miner Redirects 5 | . . . . . . . . . . . . . . . . 1 . . . . . . . . . . . 3 . . . . 1 . Construction Impeded 6 | . . . . . . . 1 . . . . . . . . . . . . . . . . . . . . . 1 . . 2 1 1 Haulers Reinforced 6 | . . . . . . . . . . . 1 . . . . . . . . . 2 . 2 . . . . . . . . . 1 . Active Scanning Responses . | . . . . . . . . . . . . . . . . . . . . . . . . . . . . . . . . . . . Cargo Convoy Interrupts 1 | . . . . . . . . . . . . . . . . . . 1 . . . . . . . . . . . . . . . . Stealth | -11 -10 -10 -9 -9 -9 -8 -8 -8 -8 -8 -7 -7 -7 -7 -6 -6 -6 -6 -6 -6 -5 -5 -5 -5 -5 -5 -4 -4 -4 -4 -4 -4 -3 -3 --------- Run | Yrd Mat Min Mat Min Exi Min Mat Gar Mat Gar Fac Low Low Dat Pro Fac Was Fac Low Low Fac Was Fac Upp Upp Zhi Pro Fac Ext Cet Arc Hub Res Tes Distress Signals 32 | . 1 . 5 . . . 6 . 1 3 1 . . . . . . . . . . . . . . . . . 1 1 . 1 8 4 Communications Jammed 100 | . . . . . . . . . . . 32 . . . . . . 2 . . 2 . 14 . . . . . 50 . . . . . Distress Signals 100 | . . . . . . . . . . . 32 . . . . . . 2 . . 2 . 14 . . . . . 50 . . . . . Times Spotted 524 | . 20 . 80 2 . . 42 26 5 26 33 5 3 . 1 6 6 19 12 . 24 6 22 1 4 . 14 14 52 5 4 13 54 25 Peak Tracking Total 17 | . 5 . 5 2 . . 4 3 2 5 5 4 3 . 1 3 3 9 7 . 7 6 5 1 3 . 4 2 17 4 3 6 5 11 Tactical Retreats 61 | . 1 . 8 . . . 3 2 . 5 5 . 1 . . 3 . 4 1 . 1 . 1 1 2 . 4 2 2 . . . 10 5 ECM-based Alert Blocks 16 | . . . . . . . . . . . 5 . . . . 3 . . . . . . . . . . . . . . . . 6 2 Traps | -11 -10 -10 -9 -9 -9 -8 -8 -8 -8 -8 -7 -7 -7 -7 -6 -6 -6 -6 -6 -6 -5 -5 -5 -5 -5 -5 -4 -4 -4 -4 -4 -4 -3 -3 ------- Run | Yrd Mat Min Mat Min Exi Min Mat Gar Mat Gar Fac Low Low Dat Pro Fac Was Fac Low Low Fac Was Fac Upp Upp Zhi Pro Fac Ext Cet Arc Hub Res Tes Traps Triggered 39 | . 1 . 1 . . . . 11 . 2 5 . . . . 2 . 5 . . 2 . 4 . . . . . 3 . . . 3 . Indirectly . | . . . . . . . . . . . . . . . . . . . . . . . . . . . . . . . . . . . Trap Hack Attempts 130 | . . . . . . . 78 . . 15 27 . . . . . . . . . . . . . . . . 10 . . . . . . Triggered . | . . . . . . . . . . . . . . . . . . . . . . . . . . . . . . . . . . . Disarmed 3 | . . . . . . . . . . 2 1 . . . . . . . . . . . . . . . . . . . . . . . Reprogrammed 8 | . . . . . . . 5 . . . . . . . . . . . . . . . . . . . . 3 . . . . . . Reused 1 | . . . . . . . . . . . . . . . . . . . . . . . . . . . . 1 . . . . . . Traps Extracted . | . . . . . . . . . . . . . . . . . . . . . . . . . . . . . . . . . . . Installed . | . . . . . . . . . . . . . . . . . . . . . . . . . . . . . . . . . . . Triggered 1 | . . . . . . . . . . . . . . . . . . . . . . . . . . . . 1 . . . . . . Machines | -11 -10 -10 -9 -9 -9 -8 -8 -8 -8 -8 -7 -7 -7 -7 -6 -6 -6 -6 -6 -6 -5 -5 -5 -5 -5 -5 -4 -4 -4 -4 -4 -4 -3 -3 ---------- Run | Yrd Mat Min Mat Min Exi Min Mat Gar Mat Gar Fac Low Low Dat Pro Fac Was Fac Low Low Fac Was Fac Upp Upp Zhi Pro Fac Ext Cet Arc Hub Res Tes Machines Disabled 34 | . . . 2 . . . 2 1 . 2 1 . . . . . . . . . 2 . 8 . . . . 2 6 . 3 1 3 1 Max in Single Turn 4 | . . . 1 . . . 1 1 . 1 1 . . . . . . . . . 2 . 4 . . . . 1 2 . 1 1 1 1 Garrison Access 8 | . . . . . . . . . . . 3 . . . . . . 1 . . 1 . . . . . . . . . . 1 2 . Garrison Relay 3 | . . . . . . . . 1 . 2 . . . . . . . . . . . . . . . . . . . . . . . . Energy Cycler 1 | . . . . . . . . . . . . . . . . . . . . . . . . . . . . . 1 . . . . . Machines Repaired . | . . . . . . . . . . . . . . . . . . . . . . . . . . . . . . . . . . . Machines Dismantled . | . . . . . . . . . . . . . . . . . . . . . . . . . . . . . . . . . . . Machines Sabotaged . | . . . . . . . . . . . . . . . . . . . . . . . . . . . . . . . . . . . Overloaded Fab Kills . | . . . . . . . . . . . . . . . . . . . . . . . . . . . . . . . . . . . Hacking | -11 -10 -10 -9 -9 -9 -8 -8 -8 -8 -8 -7 -7 -7 -7 -6 -6 -6 -6 -6 -6 -5 -5 -5 -5 -5 -5 -4 -4 -4 -4 -4 -4 -3 -3 --------- Run | Yrd Mat Min Mat Min Exi Min Mat Gar Mat Gar Fac Low Low Dat Pro Fac Was Fac Low Low Fac Was Fac Upp Upp Zhi Pro Fac Ext Cet Arc Hub Res Tes Machines Accessed 120 | . 8 1 10 . 1 . 8 3 2 4 25 . . 3 . 7 . 8 . . 10 . 5 1 . 6 . 6 2 3 . 1 6 . Terminals 67 | . 6 1 7 . . . 5 3 1 4 13 . . . . 4 . 4 . . 4 . 3 1 . . . 4 2 3 . . 2 . Fabricators 10 | . . . . . . . . . . . 1 . . . . 2 . 2 . . 3 . 1 . . . . . . . . . 1 . Repair Stations 9 | . . . 1 . . . 1 . . . 4 . . . . . . 1 . . 1 . . . . . . 1 . . . . . . Recycling Units 9 | . 2 . 2 . . . 1 . . . 2 . . . . . . . . . 1 . 1 . . . . . . . . . . . Scanalyzers 4 | . . . . . . . . . . . 2 . . . . . . . . . . . . . . . . 1 . . . . 1 . Garrison Access 11 | . . . . . . . 1 . 1 . 3 . . . . 1 . 1 . . 1 . . . . . . . . . . 1 2 . Total Hacks 372 | . 29 1 32 . 1 . 17 8 5 12 63 . . 21 . 37 . 22 . . 28 . 16 1 . 19 . 27 6 10 . 2 15 . Successful 205 | . 16 1 14 . 1 . 10 2 1 3 28 . . 21 . 18 . 7 . . 19 . 7 1 . 19 . 19 4 2 . 2 10 . Failed 166 | . 13 . 18 . . . 7 6 4 9 34 . . . . 19 . 15 . . 9 . 9 . . . . 8 2 8 . . 5 . Catastrophic 38 | . 4 . 5 . . . 2 3 . 3 9 . . . . 2 . 3 . . . . 2 . . . . 2 . 1 . . 2 . Database Lockouts 1 | . . . . . . . . . . . 1 . . . . . . . . . . . . . . . . . . . . . . . Manual 201 | . 26 . 32 . 1 . 16 . 4 . 39 . . . . 28 . 9 . . 12 . 11 . . . . 10 6 1 . . 6 . Terminals 217 | . 25 1 27 . . . 14 8 4 12 32 . . . . 28 . 9 . . 12 . 10 1 . . . 12 6 10 . . 6 . Fabricators 28 | . . . . . . . . . . . 2 . . . . 7 . 6 . . 7 . 4 . . . . . . . . . 2 . Repair Stations 23 | . . . 1 . . . 1 . . . 9 . . . . . . 6 . . 2 . . . . . . 4 . . . . . . Recycling Units 20 | . 4 . 4 . . . 1 . . . 4 . . . . . . . . . 5 . 2 . . . . . . . . . . . Scanalyzers 21 | . . . . . . . . . . . 7 . . . . . . . . . . . . . . . . 11 . . . . 3 . Garrison Access 22 | . . . . . . . 1 . 1 . 9 . . . . 2 . 1 . . 2 . . . . . . . . . . 2 4 . Terminal Hacks 89 | . 7 1 3 . 1 . 3 2 . 3 5 . . 21 . 9 . 1 . . 4 . 2 1 . 19 . 3 2 2 . . . . Record 17 | . . . . . . . . . . . 1 . . 3 . 1 . . . . 1 . . 1 . 7 . 1 . 2 . . . . Part Schematic 15 | . 1 . . . . . . . . . . . . 9 . . . . . . 1 . . . . 4 . . . . . . . . Robot Schematic 6 | . . . . . . . . . . . . . . 6 . . . . . . . . . . . . . . . . . . . . Robot Analysis 5 | . 1 . . . . . . . . . . . . . . . . . . . . . . . . 4 . . . . . . . . Prototype ID Bank 11 | . 2 . . . . . . . . . . . . 3 . 1 . . . . 1 . . . . 4 . . . . . . . . Open Door 1 | . . . . . . . . . . 1 . . . . . . . . . . . . . . . . . . . . . . . . Open DSF 1 | . . . . . . . . . . . 1 . . . . . . . . . . . . . . . . . . . . . . . Branch Access Points 2 | . 1 . . . . . . . . . . . . . . 1 . . . . . . . . . . . . . . . . . . Machine Index 1 | . . . . . . . . . . . . . . . . 1 . . . . . . . . . . . . . . . . . . Terminal Index 11 | . 1 . 1 . . . 2 . . . 1 . . . . 1 . 1 . . 1 . 1 . . . . 1 1 . . . . . Fabricator Index 1 | . . . . . . . . . . . . . . . . 1 . . . . . . . . . . . . . . . . . . Repair Station Index 1 | . . . . . . . . . . . . . . . . 1 . . . . . . . . . . . . . . . . . . Alert Level 1 | . . . . . . . 1 . . . . . . . . . . . . . . . . . . . . . . . . . . . Unreport Threat 3 | . . . . . . . . . . . 2 . . . . . . . . . . . . . . . . . 1 . . . . . Patrol Status 3 | . . 1 1 . . . . . . . . . . . . 1 . . . . . . . . . . . . . . . . . . Recall Investigation 1 | . . . 1 . . . . . . . . . . . . . . . . . . . . . . . . . . . . . . . Recall Extermination 2 | . . . . . . . . . . . . . . . . . . . . . . . 1 . . . . 1 . . . . . . Recall Reinforcements 1 | . 1 . . . . . . . . . . . . . . . . . . . . . . . . . . . . . . . . . Hauler Manifests 1 | . . . . . . . . . . . . . . . . 1 . . . . . . . . . . . . . . . . . . Garrison Registry 1 | . . . . . . . . . . 1 . . . . . . . . . . . . . . . . . . . . . . . . Patrol Navigation 2 | . . . . . . . . 1 . 1 . . . . . . . . . . . . . . . . . . . . . . . . Security Stations 1 | . . . . . . . . 1 . . . . . . . . . . . . . . . . . . . . . . . . . . Proto ID Catalog 1 | . . . . . 1 . . . . . . . . . . . . . . . . . . . . . . . . . . . . . Fabricator Hacks 14 | . . . . . . . . . . . 2 . . . . 3 . 2 . . 4 . 1 . . . . . . . . . 2 . Network Status 1 | . . . . . . . . . . . . . . . . . . . . . 1 . . . . . . . . . . . . . Load Schematic 7 | . . . . . . . . . . . 1 . . . . 2 . 1 . . 1 . 1 . . . . . . . . . 1 . Build 6 | . . . . . . . . . . . 1 . . . . 1 . 1 . . 2 . . . . . . . . . . . 1 . Repair Station Hacks 10 | . . . . . . . . . . . 3 . . . . . . 1 . . 2 . . . . . . 4 . . . . . . Scan Component 6 | . . . . . . . . . . . 2 . . . . . . 1 . . 1 . . . . . . 2 . . . . . . Repair 4 | . . . . . . . . . . . 1 . . . . . . . . . 1 . . . . . . 2 . . . . . . Recycling Unit Hacks 4 | . 1 . . . . . . . . . 1 . . . . . . . . . 1 . 1 . . . . . . . . . . . Report Inventory 3 | . 1 . . . . . . . . . . . . . . . . . . . 1 . 1 . . . . . . . . . . . Retrieve Components 1 | . . . . . . . . . . . 1 . . . . . . . . . . . . . . . . . . . . . . . Scanalyzer 17 | . . . . . . . . . . . 5 . . . . . . . . . . . . . . . . 9 . . . . 3 . Insert Component 4 | . . . . . . . . . . . 2 . . . . . . . . . . . . . . . . 2 . . . . . . Analyze 2 | . . . . . . . . . . . 1 . . . . . . . . . . . . . . . . 1 . . . . . . Retrieve Study 11 | . . . . . . . . . . . 2 . . . . . . . . . . . . . . . . 6 . . . . 3 . Garrison Access Hacks 17 | . . . . . . . 1 . 1 . 5 . . . . 1 . 1 . . 2 . . . . . . . . . . 2 4 . Unlock Access 2 | . . . . . . . 1 . 1 . . . . . . . . . . . . . . . . . . . . . . . . . Seal Access 8 | . . . . . . . . . . . 3 . . . . . . 1 . . 1 . . . . . . . . . . 1 2 . Coupler Status 7 | . . . . . . . . . . . 2 . . . . 1 . . . . 1 . . . . . . . . . . 1 2 . Unauthorized Hacks 54 | . 8 . 11 . . . 6 . . . 7 . . . . 5 . 2 . . 6 . 3 . . . . 3 2 . . . 1 . Terminals 38 | . 6 . 6 . . . 4 . . . 4 . . . . 4 . 2 . . 4 . 2 . . . . 3 2 . . . 1 . Assimilate 1 | . . . . . . . . . . . . . . . . . . . . . . . . . . . . 1 . . . . . . Botnet 37 | . 6 . 6 . . . 4 . . . 4 . . . . 4 . 2 . . 4 . 2 . . . . 2 2 . . . 1 . Fabricators . | . . . . . . . . . . . . . . . . . . . . . . . . . . . . . . . . . . . Repair Stations 4 | . . . 1 . . . 1 . . . 2 . . . . . . . . . . . . . . . . . . . . . . . Patch 4 | . . . 1 . . . 1 . . . 2 . . . . . . . . . . . . . . . . . . . . . . . Recycling Units 11 | . 2 . 4 . . . 1 . . . 1 . . . . . . . . . 2 . 1 . . . . . . . . . . . Monitor 1 | . . . 1 . . . . . . . . . . . . . . . . . . . . . . . . . . . . . . . Reject 1 | . . . . . . . . . . . . . . . . . . . . . 1 . . . . . . . . . . . . . Recyclers 1 | . . . 1 . . . . . . . . . . . . . . . . . . . . . . . . . . . . . . . Mask 1 | . . . . . . . . . . . . . . . . . . . . . 1 . . . . . . . . . . . . . Tunnel 7 | . 2 . 2 . . . 1 . . . 1 . . . . . . . . . . . 1 . . . . . . . . . . . Scanalyzers . | . . . . . . . . . . . . . . . . . . . . . . . . . . . . . . . . . . . Garrison Access 1 | . . . . . . . . . . . . . . . . 1 . . . . . . . . . . . . . . . . . . Eject 1 | . . . . . . . . . . . . . . . . 1 . . . . . . . . . . . . . . . . . . Data Cores Recovered 1 | . . . . . . . . . . . . . . . . . . . . . . . . . . . . 1 . . . . . . Used . | . . . . . . . . . . . . . . . . . . . . . . . . . . . . . . . . . . . Hacking Detections 87 | . 7 . 7 . . . 5 3 1 4 19 . . . . 6 . 7 . . 7 . 4 . . . . 6 2 3 . . 6 . Full Trace Events 41 | . 2 . 5 . . . 1 3 . 3 8 . . . . 2 . 3 . . 3 . 3 . . . . 4 1 . . . 3 . Feedback Events 2 | . . . . . . . . 1 . . . . . . . . . . . . . . . . . . . 1 . . . . . . Corruption 2 | . . . . . . . . 1 . . . . . . . . . . . . . . . . . . . 1 . . . . . . Feedback Blocked . | . . . . . . . . . . . . . . . . . . . . . . . . . . . . . . . . . . . Robot Schematics Acquired 6 | . . . . . . . . . . . . . . 6 . . . . . . . . . . . . . . . . . . . . Robots Built . | . . . . . . . . . . . . . . . . . . . . . . . . . . . . . . . . . . . Authchips . | . . . . . . . . . . . . . . . . . . . . . . . . . . . . . . . . . . . Time . | . . . . . . . . . . . . . . . . . . . . . . . . . . . . . . . . . . . Total Robot Build Rating . | . . . . . . . . . . . . . . . . . . . . . . . . . . . . . . . . . . . Part Schematics Acquired 15 | . 1 . . . . . . . . . 1 . . 9 . . . . . . . . . . . 4 . . . . . . . . Parts Built 6 | . . . . . . . . . . . 1 . . . . . . 1 . . 3 . . . . . . . . . . . 1 . Authchips . | . . . . . . . . . . . . . . . . . . . . . . . . . . . . . . . . . . . Time 499 | . . . . . . . . . . . 67 . . . . 67 . 44 . . 169 . . . . . . . . . . . 152 . Total Part Build Rating 29 | . . . . . . . . . . . 4 . . . . . . 4 . . 16 . . . . . . . . . . . 5 . Part Studies Acquired 9 | . . . . . . . . . . . 2 . . . . . . . . . . . . . . . . 4 . . . . 3 . Parts Repaired 4 | . . . . . . . . . . . 1 . . . . . . . . . 1 . . . . . . 2 . . . . . . Time 291 | . . . . . . . . . . . 70 . . . . . . . . . 44 . . . . . . 177 . . . . . . Parts Recycled . | . . . . . . . . . . . . . . . . . . . . . . . . . . . . . . . . . . . Recycled Matter . | . . . . . . . . . . . . . . . . . . . . . . . . . . . . . . . . . . . Retrieved Matter . | . . . . . . . . . . . . . . . . . . . . . . . . . . . . . . . . . . . Retrieved Components 10 | . . . . . . . . . . . 10 . . . . . . . . . . . . . . . . . . . . . . . Parts Scanalyzed 2 | . . . . . . . . . . . 1 . . . . . . . . . . . . . . . . 1 . . . . . . Part Schematics Acquired 1 | . . . . . . . . . . . 1 . . . . . . . . . . . . . . . . . . . . . . . Parts Damaged . | . . . . . . . . . . . . . . . . . . . . . . . . . . . . . . . . . . . Bothacking | -11 -10 -10 -9 -9 -9 -8 -8 -8 -8 -8 -7 -7 -7 -7 -6 -6 -6 -6 -6 -6 -5 -5 -5 -5 -5 -5 -4 -4 -4 -4 -4 -4 -3 -3 ------------ Run | Yrd Mat Min Mat Min Exi Min Mat Gar Mat Gar Fac Low Low Dat Pro Fac Was Fac Low Low Fac Was Fac Upp Upp Zhi Pro Fac Ext Cet Arc Hub Res Tes Used RIF Installer 3 | . . . . . . . . 1 . 2 . . . . . . . . . . . . . . . . . . . . . . . . Signal Jammer 1 | . . . . . . . . . . 1 . . . . . . . . . . . . . . . . . . . . . . . . Watcher Feeds 1 | . . . . . . . . . . 1 . . . . . . . . . . . . . . . . . . . . . . . . Robots Hacked 16 | . . . . . . . . . . . 5 . . . . . 6 4 . . . . 1 . . . . . . . . . . . Non-combat 9 | . . . . . . . . . . . 4 . . . . . . 4 . . . . 1 . . . . . . . . . . . Combat 7 | . . . . . . . . . . . 1 . . . . . 6 . . . . . . . . . . . . . . . . . Robot Hacks Applied 19 | . . . . . . . . . . . 8 . . . . . 6 4 . . . . 1 . . . . . . . . . . . no_distress 1 | . . . . . . . . . . . 1 . . . . . . . . . . . . . . . . . . . . . . . find_fabricator 3 | . . . . . . . . . . . 2 . . . . . . 1 . . . . . . . . . . . . . . . . find_dsf 1 | . . . . . . . . . . . 1 . . . . . . . . . . . . . . . . . . . . . . . find_recycling 3 | . . . . . . . . . . . 1 . . . . . . 1 . . . . 1 . . . . . . . . . . . ignore_parts 2 | . . . . . . . . . . . 1 . . . . . . 1 . . . . . . . . . . . . . . . . block_reporting 1 | . . . . . . . . . . . . . . . . . . 1 . . . . . . . . . . . . . . . . ignore_targets 6 | . . . . . . . . . . . . . . . . . 6 . . . . . . . . . . . . . . . . . formatsys_high 2 | . . . . . . . . . . . 2 . . . . . . . . . . . . . . . . . . . . . . . Relay Couplers Released 21 | . . . . . . . . 5 . 11 . . . . . 4 . . . . 1 . . . . . . . . . . . . . Ejected 4 | . . . . . . . . . . . . . . . . 4 . . . . . . . . . . . . . . . . . . Machine Destruction 13 | . . . . . . . . 5 . 7 . . . . . . . . . . 1 . . . . . . . . . . . . . Programmers 4 | . . . . . . . . . . 4 . . . . . . . . . . . . . . . . . . . . . . . . Attached 3 | . . . . . . . . . . . 1 . . . . 1 . 1 . . . . . . . . . . . . . . . . Fabnet Peak Effective % . | . . . . . . . . . . . . . . . . . . . . . . . . . . . . . . . . . . . Robots Rewired 15 | . . . . . . . . . . 4 . . . . . . . . . . . . . . . . . 1 10 . . . . . Allies Hacked . | . . . . . . . . . . . . . . . . . . . . . . . . . . . . . . . . . . . Hacks Repelled . | . . . . . . . . . . . . . . . . . . . . . . . . . . . . . . . . . . . Allies | -11 -10 -10 -9 -9 -9 -8 -8 -8 -8 -8 -7 -7 -7 -7 -6 -6 -6 -6 -6 -6 -5 -5 -5 -5 -5 -5 -4 -4 -4 -4 -4 -4 -3 -3 -------- Run | Yrd Mat Min Mat Min Exi Min Mat Gar Mat Gar Fac Low Low Dat Pro Fac Was Fac Low Low Fac Was Fac Upp Upp Zhi Pro Fac Ext Cet Arc Hub Res Tes Total Allies 45 | . . . . . . . . . . 4 2 . . . . . . . . . . 18 . . . . 3 1 17 . . . . . Largest Group 18 | . . . . . . . . . . 4 2 . . . . . . . . . . 18 15 . . . 2 1 9 8 3 1 . . Highest-Rated Group 638 | . . . . . . . . . . 132 53 . . . . . . . . . . 638 563 . . . 101 47 503 344 104 46 . . Highest-Rated Ally 159 | . . . . . . . . . . 39 40 . . . . . . . . . . 50 50 . . . 54 47 159 51 46 46 . . Total Orders 17 | . . . . . . . . . . . 1 . . . . . . 4 . . . . . . 3 . . . 2 . . . 7 . STAY 1 | . . . . . . . . . . . 1 . . . . . . . . . . . . . . . . . . . . . . . AID 2 | . . . . . . . . . . . . . . . . . . . . . . . . . . . . . 2 . . . . . EXPLORE 11 | . . . . . . . . . . . . . . . . . . 4 . . . . . . 3 . . . . . . . 4 . RETURN 3 | . . . . . . . . . . . . . . . . . . . . . . . . . . . . . . . . . 3 . Ally Attacks 429 | . . . . . . . . . . 68 . . . . . . . . . . . 79 105 . . . 9 5 124 21 16 2 . . Total Damage 13613 | . . . . . . . . . . 1048 . . . . . . . . . . . 3546 3805 . . . 271 242 3667 601 379 54 . . Kills 84 | . . . . . . . . . . 10 . . . . . . . . . . . 8 23 . . . 4 1 33 3 2 . . . Allies Corrupted 3 | . . . . . . . . . . 2 . . . . . . . . . . . . 1 . . . . . . . . . . . Allies Melted . | . . . . . . . . . . . . . . . . . . . . . . . . . . . . . . . . . . . Field Lobotomies 3 | . . . . . . . . . . . . . . . . . . . . . . . . . . . 3 . . . . . . . Intel | -11 -10 -10 -9 -9 -9 -8 -8 -8 -8 -8 -7 -7 -7 -7 -6 -6 -6 -6 -6 -6 -5 -5 -5 -5 -5 -5 -4 -4 -4 -4 -4 -4 -3 -3 ------- Run | Yrd Mat Min Mat Min Exi Min Mat Gar Mat Gar Fac Low Low Dat Pro Fac Was Fac Low Low Fac Was Fac Upp Upp Zhi Pro Fac Ext Cet Arc Hub Res Tes Active Infowar (turns) 6102 | . 422 . . . . . . . . . 452 123 125 40 182 375 168 822 242 50 716 . . 108 188 89 364 610 203 . . 1 593 229 Optics 1518 | . . . . . . . . . . . . . . . . . . 822 242 50 404 . . . . . . . . . . . . . Sensors 390 | . . . . . . . . . . . . . . . . . . . . . . . . . . . . . . . . . 390 . A.S.S. 1 | . . . . . . . . . . . . . . . . . . . . . . . . . . . . . . . . 1 . . IFF 835 | . . . . . . . . . . . . . . . . . . . . . . . . 108 188 89 364 86 . . . . . . Terrain 432 | . . . . . . . . . . . . . . . . . . . . . . . . . . . . . . . . . 203 229 Structural 2513 | . 422 . . . . . . . . . 383 123 125 40 182 375 168 276 . . 393 . . . . . . 26 . . . . . . Machine Analysis 727 | . . . . . . . . . . . . . . . . . . . . . . . . . . . . 524 203 . . . . . Triangulation 364 | . . . . . . . . . . . . . . . . . . 155 209 . . . . . . . . . . . . . . . ECM 563 | . . . . . . . . . . . 69 . . . . 24 . . . . . . . . . . . . . . . . 352 118 Robot Analysis Total 5 | . 1 . . . . . . . . . . . . . . . . . . . . . . . . 4 . . . . . . . . Derelict Logs Recovered 7 | . . . . . . . . . . . . . . . 2 . . . . 1 . . . 2 1 . 1 . . . . . . . Drone Launches 13 | . . . . . . . . . . . . . . . . . . 4 . . . . . . 3 . . . . . . . 6 . Drone Recoveries 8 | . . . . . . . . . . . . . . . . . . 2 . . . . . . . . . . . . . . 6 . Exploration | -11 -10 -10 -9 -9 -9 -8 -8 -8 -8 -8 -7 -7 -7 -7 -6 -6 -6 -6 -6 -6 -5 -5 -5 -5 -5 -5 -4 -4 -4 -4 -4 -4 -3 -3 ------------- Run | Yrd Mat Min Mat Min Exi Min Mat Gar Mat Gar Fac Low Low Dat Pro Fac Was Fac Low Low Fac Was Fac Upp Upp Zhi Pro Fac Ext Cet Arc Hub Res Tes Turns Passed 27073 | 151 1500 69 4312 385 693 158 2607 1803 448 1205 2449 123 125 40 182 375 243 842 242 50 1406 110 894 156 188 89 364 612 1215 316 191 456 2744 330 Spaces Moved 17961 | 65 662 44 1019 113 217 49 673 573 136 407 2778 266 268 104 397 401 180 1065 293 79 1550 164 1535 292 240 222 439 1028 874 173 77 174 1174 230 Core 150 | 7 . . . . . . . . . . 2 . . . . . . . . . . . . . . . . . . . . . . 141 Treads 6110 | 58 662 44 1019 113 217 49 673 573 136 332 161 . . . . . . . . . 9 . . . . . . . 377 173 77 174 1174 89 Legs . | . . . . . . . . . . . . . . . . . . . . . . . . . . . . . . . . . . . Wheels 187 | . . . . . . . . . . 75 . . . . . . . . . . 112 . . . . . . . . . . . . . Hover 11514 | . . . . . . . . . . . 2615 266 268 104 397 401 180 1065 293 79 1429 164 1535 292 240 222 439 1028 497 . . . . . Flight . | . . . . . . . . . . . . . . . . . . . . . . . . . . . . . . . . . . . Fastest Speed 20 | 50 160 160 160 320 320 320 238 235 240 195 22 22 22 38 22 30 102 30 60 60 23 24 24 28 28 28 28 20 24 155 155 155 148 50 Average Speed 99 | 148 160 160 268 320 320 322 243 244 240 232 51 37 36 38 37 79 102 48 65 60 36 25 30 44 76 28 39 23 81 155 155 156 154 96 Slowest Speed 500 | 160 160 160 320 320 320 325 325 312 240 240 500 38 38 38 38 102 102 102 110 60 163 26 112 104 108 28 108 300 160 155 155 160 245 212 Overloaded Moves 229 | . . . . . . . . . . . 4 4 27 . 24 62 . 87 . . 4 . . . . . . 17 . . . . . . Propulsion Burnouts . | . . . . . . . . . . . . . . . . . . . . . . . . . . . . . . . . . . . Robots Hopped . | . . . . . . . . . . . . . . . . . . . . . . . . . . . . . . . . . . . Potential Cave-ins 6 | . . . . . . . . . . . . . . . . . . . . . . 2 . . . . . . . . . . 4 . Cave-ins Triggered . | . . . . . . . . . . . . . . . . . . . . . . . . . . . . . . . . . . . Teleports 1 | . . . . . . . . . . . . . . . . . . . . . . . . . . 1 . . . . . . . . Exploration Rate (%) 47 | 6 86 9 87 14 62 9 61 53 16 54 59 47 45 75 54 17 86 35 47 19 40 86 33 49 48 62 65 21 90 68 81 19 23 25 Regions Visited 34 Branch Regions 19 Pre-discovered Areas 10 | . 2 . 2 . . . 1 . . . 1 . . . . . . . . . . . 1 . . 3 . . . . . . . . Known Exits Taken 20 | . 1 . . . . . 1 . 1 . 1 1 1 1 1 . . 1 . . . . 1 1 1 1 1 1 1 1 1 1 1 . Unknown Exits Taken 8 | 1 . 1 1 1 1 1 . . . . . . . . . . . . 1 1 . . . . . . . . . . . . . . Scrap Searched 14 | . . . . . . 1 . . . . . 3 1 . 3 . . . 1 2 . . . 1 1 . 1 . . . . . . . Spaces Dug 183 | . . . . . . . 2 1 . 2 43 . 2 . 2 7 . 20 16 . 21 . 14 . . . 2 32 1 . . . 16 2 Terrain Destroyed 1304 | . . . 107 . . . 78 1 . 35 74 72 2 . 51 7 . 20 111 . 119 . 169 . . . 2 78 247 . 13 9 48 61 Melee 165 | . . . . . . . 2 1 . 2 43 . 2 . 2 7 . 20 . . 21 . 14 . . . 2 32 1 . . . 14 2 Projectile 68 | . . . . . . . . . . . . . . . . . . . . . . . . . . . . . 3 . 13 8 34 10 AOE 1070 | . . . 107 . . . 76 . . 33 31 72 . . 49 . . . 111 . 98 . 155 . . . . 46 243 . . . . 49 Terrain Rammed . | . . . . . . . . . . . . . . . . . . . . . . . . . . . . . . . . . . . Walls Destroyed . | . . . . . . . . . . . . . . . . . . . . . . . . . . . . . . . . . . . Machines Disabled . | . . . . . . . . . . . . . . . . . . . . . . . . . . . . . . . . . . . Actions | -11 -10 -10 -9 -9 -9 -8 -8 -8 -8 -8 -7 -7 -7 -7 -6 -6 -6 -6 -6 -6 -5 -5 -5 -5 -5 -5 -4 -4 -4 -4 -4 -4 -3 -3 --------- Run | Yrd Mat Min Mat Min Exi Min Mat Gar Mat Gar Fac Low Low Dat Pro Fac Was Fac Low Low Fac Was Fac Upp Upp Zhi Pro Fac Ext Cet Arc Hub Res Tes Total 25055 | 96 1000 43 2354 126 217 51 1470 826 245 585 3648 278 283 103 421 442 203 1258 332 80 2274 232 1842 316 243 235 617 1261 1282 200 117 279 1807 289 Wait 4720 | 8 235 . 1140 1 . . 557 140 95 50 607 4 7 . 9 24 . 77 22 . 552 59 187 23 . . 164 87 230 4 10 40 373 15 Move 17927 | 64 661 43 1018 112 216 48 672 571 135 405 2777 265 267 103 396 401 179 1064 292 78 1550 163 1534 291 239 221 438 1027 873 172 76 173 1173 230 Hop . | . . . . . . . . . . . . . . . . . . . . . . . . . . . . . . . . . . . Pick Up 210 | 5 14 . 21 2 1 1 17 5 5 10 20 . . . 3 2 . 4 . . 14 2 7 . 1 1 3 13 11 2 5 5 35 1 Fast Attach 125 | 6 7 . 3 1 . . 2 . . . 15 . . . . 2 1 8 . 2 24 . 9 . . 3 2 2 11 1 1 5 15 5 Attach 114 | . 2 . 7 4 . . 7 9 2 4 5 . 1 . 1 2 . 4 4 . 13 . 4 1 1 1 3 6 9 . 1 3 18 2 Detach 49 | . 1 . 2 . . . 1 . . . 5 . . . . 1 1 3 4 . 12 1 2 . . 1 . . 6 1 . 5 2 1 Swap 252 | . 7 . 19 . . 1 24 5 . 22 34 3 1 . 3 2 . 5 . . 15 4 24 1 2 1 . 32 18 4 1 1 22 1 Drop 198 | . 11 . 17 . . 1 18 1 1 10 33 . . . 2 1 . 7 . . 22 3 5 . . 1 1 17 7 5 6 2 20 7 Fire 782 | 13 61 . 126 6 . . 89 76 7 31 31 5 . . 5 . 7 8 8 . 28 . 9 . . . 4 4 52 11 17 44 121 19 Melee 395 | . . . . . . . 3 1 . 11 79 1 7 . 2 7 15 61 2 . 44 . 48 . . 6 2 63 11 . . . 28 4 Ram 1 | . . . . . . . . . . . . . . . . . . . . . . . . . . . . . . . . . . 1 Kick . | . . . . . . . . . . . . . . . . . . . . . . . . . . . . . . . . . . . Crush 7 | . 1 . 1 . . . 2 . . . . . . . . . . . . . . . . . . . . . . . . 1 . 2 Escape Stasis 86 | . . . . . . . . 18 . 4 13 . . . . . . 11 . . . . 13 . . . . . 26 . . . . 1 Rewire 59 | . . . . . . . . . . 23 2 . . . . . . 6 . . . . . . . . . . 28 . . . . . Trap 130 | . . . . . . . 78 . . 15 27 . . . . . . . . . . . . . . . . 10 . . . . . . Miscellaneous . | . . . . . . . . . . . . . . . . . . . . . . . . . . . . . . . . . . . Route ------- -11/Scrapyard -10/Materials (discovered 5 exits: *Mat x3 / *Min / [*Sub]) -10/Mines -9/Materials (discovered 3 exits: *Mat / [*Min x2]) -9/Mines -9/Exiles (discovered 2 exits: [*Min x2]) -8/Mines -8/Materials (discovered 3 exits: *Fac x2 / Gar) -8/Garrison (discovered 2 exits: *Mat x2) -8/Materials -8/Garrison (discovered 3 exits: *Fac x3) -7/Factory (discovered 5 exits: *Fac x3 / [*Sto] / *Low) -7/Lower Caves -7/Lower Caves -7/Data Miner -6/Proximity Caves -6/Factory (discovered 2 exits: Low x2) -6/Waste -6/Factory -6/Lower Caves -6/Lower Caves -5/Factory -5/Waste -5/Factory (discovered 3 exits: *Fac x2 / *Upp) -5/Upper Caves -5/Upper Caves -5/Zhirov -4/Proximity Caves -4/Factory -4/Extension (discovered 2 exits: *Res / *Cet) -4/Cetus (discovered 2 exits: *Res / *Arc) -4/Archives (discovered 3 exits: *Res / *Hub x2) -4/Hub_04(d) -3/Research (discovered 2 exits: *Tes x2) -3/Testing History --------- Turn | Location | Event 42 | -11/Scrapyard | Discovered new exit (range 15) 152 | -11/Scrapyard | Entered Materials 305 | -10/Materials | Build established: Mutant 620 | -10/Materials | Discovered new exit (range 14) 719 | -10/Materials | Identified exit to Mines 819 | -10/Materials | Discovered new exit (range 9) 1204 | -10/Materials | Discovered new exit (range 10) 1535 | -10/Materials | Discovered new exit (range 5) 1652 | -10/Materials | Entered Mines 1657 | -10/Mines | Discovered new exit (range 9) 1721 | -10/Mines | Entered Materials 1721 | -9/Materials | Evolved 2 slots: Utility x2 2099 | -9/Materials | Discovered new exit (range 5) 2575 | -9/Materials | Discovered new exit (range 16) 2695 | -9/Materials | Build established: Scavenger-Mutant 3697 | -9/Materials | Discovered new exit (range 9) 4121 | -9/Materials | Build established: Mutant 4833 | -9/Materials | Core integrity fell below 50% 4870 | -9/Materials | Destroyed 7 combat bots 5721 | -9/Materials | First assault squad dispatched 6033 | -9/Materials | Entered Mines 6049 | -9/Mines | Core integrity fell below 20% 6050 | -9/Mines | Met a Derelict bent on vengeance 6278 | -9/Mines | Deemed a non-threat by the Exiles lab entrance 6278 | -9/Mines | Discovered new exit (range 5) 6337 | -9/Mines | Build established: Scavenger-Mutant 6418 | -9/Mines | Entered Exiles 6466 | -9/Exiles | Discovered new exit (range 15) 6495 | -9/Exiles | Met 8R-AWN 6553 | -9/Exiles | Met EX-HEX 6649 | -9/Exiles | Met EX-BIN 6694 | -9/Exiles | Aligned with FarCom system 6697 | -9/Exiles | Given EX-Vault access code 6774 | -9/Exiles | Opened EX-Vault 6796 | -9/Exiles | Found Field Lobotomy Kit 6861 | -9/Exiles | Warned to stay clear of 0b10 Research branches 6904 | -9/Exiles | Exiles lab attacked by MAIN.C 7075 | -9/Exiles | Discovered new exit (range 14) 7111 | -9/Exiles | Left Exiles lab with Field Lobotomy Kit 7111 | -9/Exiles | Entered Mines 7150 | -8/Mines | Discovered new exit (range 9) 7269 | -8/Mines | Entered Materials 7269 | -8/Materials | Evolved 2 slots: Propulsion x1, Utility x1 7850 | -8/Materials | Build established: Mutant 8636 | -8/Materials | Discovered new exit (range 12) 8666 | -8/Materials | Identified exit to Factory 9832 | -8/Materials | Discovered exit to Factory (range 16) 9872 | -8/Materials | Identified exit to Garrison 9876 | -8/Materials | Entered Garrison 10196 | -8/Garrison | Triggered checkpoint 10404 | -8/Garrison | Triggered checkpoint 10516 | -8/Garrison | Triggered checkpoint 10580 | -8/Garrison | Triggered checkpoint 10622 | -8/Garrison | Learned Materials security intel 10685 | -8/Garrison | Garrison Relay disabled 10783 | -8/Garrison | Discovered new exit (range 10) 10965 | -8/Garrison | Discovered new exit (range 13) 11042 | -8/Garrison | Triggered checkpoint 11163 | -8/Garrison | Core integrity fell below 50% 11370 | -8/Garrison | Triggered checkpoint 11439 | -8/Garrison | Installed Relay Interface Framework 11552 | -8/Garrison | Build established: Scavenger-Mutant 11679 | -8/Garrison | Entered Materials 12125 | -8/Materials | Identified exit to Garrison 12127 | -8/Materials | Entered Garrison 12168 | -8/Garrison | Discovered exit to Factory (range 49) 12168 | -8/Garrison | Discovered exit to Factory (range 40) 12168 | -8/Garrison | Discovered exit to Factory (range 66) 12366 | -8/Garrison | Garrison Relay disabled 12385 | -8/Garrison | Triggered checkpoint 12619 | -8/Garrison | Triggered checkpoint 12659 | -8/Garrison | Triggered checkpoint 12660 | -8/Garrison | Triggered checkpoint 12717 | -8/Garrison | Expanded RIF knowledge: Watcher Feeds 12819 | -8/Garrison | Core integrity fell below 20% 13078 | -8/Garrison | Expanded RIF knowledge: Signal Jamming 13143 | -8/Garrison | Garrison Relay disabled 13332 | -8/Garrison | Entered Factory 13332 | -7/Factory | Evolved 2 slots: Propulsion x1, Utility x1 14085 | -7/Factory | Build established: Mutant 14132 | -7/Factory | First assault squad dispatched 14179 | -7/Factory | Fabricated Cld. Airjet? 14227 | -7/Factory | Discovered new exit (range 15) 14233 | -7/Factory | Identified exit to Factory 14298 | -7/Factory | Central database locked down 14700 | -7/Factory | Discovered new exit (range 20) 14812 | -7/Factory | Discovered exit to Factory (range 6) 15249 | -7/Factory | Repaired Cld. Airjet 15347 | -7/Factory | Discovered exit to Factory (range 9) 15772 | -7/Factory | Discovered new exit (range 3) 15773 | -7/Factory | Identified exit to Lower Caves 15781 | -7/Factory | Entered Lower Caves 15794 | -7/Lower Caves | Encountered a Warlord checkpoint 15888 | -7/Lower Caves | Discovered new exit (range 14) 15892 | -7/Lower Caves | Identified exit to Lower Caves 15904 | -7/Lower Caves | Entered another Lower Caves area 15927 | -7/Lower Caves | Attracted the attention of an 0b10 checkpoint 16016 | -7/Lower Caves | Discovered new exit (range 16) 16024 | -7/Lower Caves | Identified exit to Data Miner 16029 | -7/Lower Caves | Entered Data Miner 16029 | -7/Data Miner | Discovered new exit (range 6) 16037 | -7/Data Miner | Met Data Miner 16054 | -7/Data Miner | Received God Mode back door access code from Data Miner 16068 | -7/Data Miner | Identified exit to Proximity Caves 16069 | -7/Data Miner | Entered Proximity Caves 16106 | -6/Proximity Caves | Learned Factory emergency access door positions 16189 | -6/Proximity Caves | Learned Factory garrison access intel 16248 | -6/Proximity Caves | Discovered exit to Factory (range 7) 16251 | -6/Proximity Caves | Entered Factory 16251 | -6/Factory | Evolved 2 slots: Utility x2 16253 | -6/Factory | Loaded intel: 4 garrison access locations 16279 | -6/Factory | Build established: Hacker-Mutant 16488 | -6/Factory | Identified exit to Lower Caves 16619 | -6/Factory | Incoming investigation squad redirected 16626 | -6/Factory | Sucked down chute 16626 | -6/Factory | Entered Waste 16641 | -6/Waste | EMP discharged 16680 | -6/Waste | Spotted C-40 Crusher 16684 | -6/Waste | Spotted C-40 Crusher 16688 | -6/Waste | Spotted C-40 Crusher 16699 | -6/Waste | Spotted C-40 Crusher 16741 | -6/Waste | EMP discharged 16741 | -6/Waste | System corruption reached 10% 16790 | -6/Waste | Destroyed C-40 Crusher 16814 | -6/Waste | Spotted C-40 Crusher 16839 | -6/Waste | Spotted C-40 Crusher 16841 | -6/Waste | EMP discharged 16853 | -6/Waste | Discovered new exit (range 15) 16868 | -6/Waste | Identified exit to Factory 16869 | -6/Waste | Entered Factory 17153 | -6/Factory | Discovered exit to Lower Caves (range 20) 17389 | -6/Factory | Fabricated Cld. Airjet (x1) 17510 | -6/Factory | Spotted B-75 Beast 17603 | -6/Factory | Cargo convoy interrupted 17643 | -6/Factory | Lost 4 parts (1n2u1w) 17711 | -6/Factory | Entered Lower Caves 17744 | -6/Lower Caves | Lost 6 parts (3n2u1w) 17793 | -6/Lower Caves | Spotted B-75 Beast 17949 | -6/Lower Caves | Discovered new exit (range 7) 17953 | -6/Lower Caves | Entered another Lower Caves area 17973 | -6/Lower Caves | Learned 4 Factory zone layouts 17989 | -6/Lower Caves | Discovered new exit (range 14) 17991 | -6/Lower Caves | Encountered a Warlord checkpoint 18003 | -6/Lower Caves | Entered Factory 18003 | -5/Factory | Evolved 2 slots: Propulsion x1, Utility x1 18046 | -5/Factory | Build established: Mutant 18281 | -5/Factory | Repaired Broken Cld. Airjet 18359 | -5/Factory | Fabricated Cld. Airjet? 18428 | -5/Factory | Found Scatter Rocket Array 18433 | -5/Factory | Found Faulty Scatter Rocket Array 18533 | -5/Factory | Fabricated Linear Gravjet (x2) 18598 | -5/Factory | Destroyed 12 combat bots 18748 | -5/Factory | Discovered new exit (range 13) 19172 | -5/Factory | Build established: Sprinter 19409 | -5/Factory | Sucked down chute 19409 | -5/Factory | Entered Waste 19421 | -5/Waste | Spotted C-40 Crusher 19422 | -5/Waste | Spotted C-40 Crusher 19423 | -5/Waste | Spotted C-40 Crusher 19424 | -5/Waste | Spotted C-40 Crusher 19427 | -5/Waste | Spotted C-40 Crusher 19428 | -5/Waste | Spotted C-40 Crusher 19437 | -5/Waste | Warlord forces began an assault 19452 | -5/Waste | Allies destroyed C-40 Crusher 19453 | -5/Waste | Allies destroyed C-40 Crusher 19457 | -5/Waste | Allies destroyed C-40 Crusher 19461 | -5/Waste | Allies destroyed C-40 Crusher 19469 | -5/Waste | Discovered new exit (range 12) 19476 | -5/Waste | Identified exit to Factory 19484 | -5/Waste | Lost 3 allies 19519 | -5/Waste | Entered Factory 19519 | -5/Factory | Accompanied by 15 allies 19580 | -5/Factory | Discovered new exit (range 15) 19584 | -5/Factory | Identified exit to Upper Caves 19867 | -5/Factory | Lost 4 allies 19936 | -5/Factory | Discovered new exit (range 14) 19940 | -5/Factory | Identified exit to Factory 20119 | -5/Factory | First assault squad dispatched 20136 | -5/Factory | Lost 3 parts (1u2w) 20140 | -5/Factory | Discovered exit to Factory (range 7) 20413 | -5/Factory | Entered Upper Caves 20414 | -5/Upper Caves | Identified exit to Upper Caves 20473 | -5/Upper Caves | Attracted the attention of an 0b10 checkpoint 20559 | -5/Upper Caves | Learned Factory trap positions 20569 | -5/Upper Caves | Entered another Upper Caves area 20571 | -5/Upper Caves | Attracted the attention of an 0b10 checkpoint 20579 | -5/Upper Caves | Learned Factory stockpile data 20742 | -5/Upper Caves | Spotted B-75 Beast 20755 | -5/Upper Caves | Discovered new exit (range 7) 20757 | -5/Upper Caves | Identified exit to Zhirov 20757 | -5/Upper Caves | Entered Zhirov 20757 | -5/Zhirov | Discovered new exit (range 3) 20763 | -5/Zhirov | Met Zhirov 20769 | -5/Zhirov | Found Alien Artifact 20769 | -5/Zhirov | Identified Transdimensional Reconstructor 20769 | -5/Zhirov | Warped through subspace 20785 | -5/Zhirov | Found Alien Artifact 20785 | -5/Zhirov | Identified Integrated Reactor 20785 | -5/Zhirov | Installed Integrated Reactor, increased core energy generation (+10) 20837 | -5/Zhirov | Learned location of Quarantine (-2) 20837 | -5/Zhirov | Learned location of Command (-1) 20838 | -5/Zhirov | Zhirov requested help retrieving the SGEMP Prototype 20846 | -5/Zhirov | Identified exit to Proximity Caves 20846 | -5/Zhirov | Entered Proximity Caves 21017 | -4/Proximity Caves | Assimilated G-67 Veteran with FLK Orb 21072 | -4/Proximity Caves | Learned Research garrison access intel 21073 | -4/Proximity Caves | Assimilated P-70 Sage with FLK Orb 21139 | -4/Proximity Caves | Assimilated G-67 Veteran with FLK Orb 21207 | -4/Proximity Caves | Discovered exit to Factory (range 8) 21210 | -4/Proximity Caves | Entered Factory 21210 | -4/Factory | Evolved 2 slots: Power x1, Propulsion x1 21211 | -4/Factory | Loaded intel: 124 trap records 21271 | -4/Factory | Found Prototype Launcher 21272 | -4/Factory | Identified Com. Tesla Bomb Launcher 21380 | -4/Factory | Discovered new exit (range 11) 21382 | -4/Factory | Identified exit to Extension 21482 | -4/Factory | Repaired Broken Biometal Heavy Treads? 21583 | -4/Factory | Incoming investigation squad redirected 21597 | -4/Factory | System corruption reached 10% 21621 | -4/Factory | Incoming investigation squad redirected 21627 | -4/Factory | Repaired Adv. Heavy Siege Treads? 21718 | -4/Factory | Incoming investigation squad redirected 21822 | -4/Factory | Entered Extension 21853 | -4/Extension | Spotted B-86 Titan 21946 | -4/Extension | Rescued a captive Derelict 22000 | -4/Extension | Rescued a captive Derelict 22004 | -4/Extension | Destroyed 7 combat bots 22039 | -4/Extension | Rescued a captive Derelict 22040 | -4/Extension | Rescued a captive Derelict 22065 | -4/Extension | Rescued a captive Derelict 22143 | -4/Extension | Rescued A7 22207 | -4/Extension | Spotted B-86 Titan 22221 | -4/Extension | Lost 4 allies 22232 | -4/Extension | Destroyed B-86 Titan 22238 | -4/Extension | Destroyed B-86 Titan 22253 | -4/Extension | Lost 3 parts (2n1w) 22269 | -4/Extension | Found Hvy. Reflective Plating 22347 | -4/Extension | Disrupted transfer network 22433 | -4/Extension | Energy Cycler disabled 22436 | -4/Extension | Rescued a captive Derelict 22757 | -4/Extension | Build established: Commander-Mutant 22801 | -4/Extension | Discovered new exit (range 15) 22801 | -4/Extension | Discovered new exit (range 11) 22822 | -4/Extension | First assault squad dispatched 22864 | -4/Extension | Lost 3 parts (1p2u) 22885 | -4/Extension | Destroyed 10 combat bots 22913 | -4/Extension | System corruption reached 30% 22952 | -4/Extension | Extracted ID and sensor layout for unrecognized location from A7's data core 22955 | -4/Extension | Identified exit to Cetus 22962 | -4/Extension | Identified exit to Research 23037 | -4/Extension | Entered Cetus 23037 | -4/Cetus | Accompanied by 8 allies 23050 | -4/Cetus | Spotted Cetus Guard 23051 | -4/Cetus | Allies destroyed Cetus Guard 23052 | -4/Cetus | Spotted Cetus Guard 23065 | -4/Cetus | Allies destroyed Cetus Guard 23067 | -4/Cetus | Spotted Cetus Guard 23078 | -4/Cetus | Destroyed Cetus Guard 23085 | -4/Cetus | Allies destroyed Cetus Guard 23115 | -4/Cetus | Lost 5 allies 23172 | -4/Cetus | Discovered exit to Research (range 15) 23328 | -4/Cetus | Discovered new exit (range 16) 23352 | -4/Cetus | Identified exit to Archives 23353 | -4/Cetus | Build established: Scavenger-Mutant 23353 | -4/Cetus | Entered Archives 23353 | -4/Archives | Accompanied by 3 allies 23465 | -4/Archives | Unable to access archive contents 23476 | -4/Archives | Discovered new exit (range 15) 23505 | -4/Archives | Discovered exit to Research (range 16) 23519 | -4/Archives | Discovered new exit (range 16) 23543 | -4/Archives | Identified exit to Hub_04(d) 23544 | -4/Archives | Entered Hub_04(d) 23544 | -4/Hub_04(d) | Accompanied by 1 ally 23833 | -4/Hub_04(d) | Discovered exit to Research (range 6) 23951 | -4/Hub_04(d) | Found Prototype Device 23951 | -4/Hub_04(d) | Identified Active Sensor Suite 24000 | -4/Hub_04(d) | Entered Research 24000 | -3/Research | Evolved 2 slots: Utility x1, Weapon x1 24001 | -3/Research | Loaded intel: 4 garrison access locations 24126 | -3/Research | Discovered new exit (range 6) 24134 | -3/Research | Identified exit to Testing 24329 | -3/Research | Build established: Scavenger-Tank 24882 | -3/Research | Allied Derelicts emerged from ambush trap array 25029 | -3/Research | Fabricated Lgt. Regenerative Plating? 25417 | -3/Research | Discovered exit to Testing (range 14) 25812 | -3/Research | Build established: Scavenger-Mutant 25949 | -3/Research | System corruption reached 10% 26068 | -3/Research | Lost 3 parts (1n2u) 26424 | -3/Research | Incoming investigation squad redirected 26611 | -3/Research | Lost 4 parts (1p2n1u) 26685 | -3/Research | Lost 3 parts (1n2w) 26744 | -3/Research | Entered Testing 26745 | -3/Testing | Maximum security lockdown engaged 26797 | -3/Testing | Scanned by Researcher 26872 | -3/Testing | Build established: Scavenger-Skirmisher 26893 | -3/Testing | Lost 3 parts (1n2u) 27008 | -3/Testing | Lost 10 parts (2p5n3u) 27044 | -3/Testing | Core integrity fell below 50% 27051 | -3/Testing | Spotted Striker 27051 | -3/Testing | Spotted Striker 27068 | -3/Testing | Core integrity fell below 20% 27074 | -3/Testing | Destroyed by G-67 Veteran with Plasma Rifle Last Messages --------------- 26980_ System corrupted: Matter fused (-9). 26987_ O-32 Director: "IFF HANDSHAKE FAILED. SECURING TERMINAL." 26988_ Acquired Unknown Treads. 26988_ Identified Adv. Medium Treads. 26993_ Dropped Adv. Medium Treads. 26997_ System corrupted: Matter fused (-5). 27003_ Acquired Power Sword. 27011_ Reinforced Shell breached. 27012_ System corrupted: Heat flow error (+180). 27023_ Adv. Weight Redist. System severed. 27030_ K9KPZZICE#NXR|0&OFJRBO K=ETAGTCQNN: 27037_ Penetrated by Slug. 27037_ Slug penetrates Wall. 27041_ Penetrated by Slug. 27044_ Slug penetrates Wall. 27050_ 1%UXTUI#F2LWSHE6&WAEPLIZXTHO2I: %OFC 27058_ Adv. Signal Interpreter destroyed. 27071_ System corrupted: Power Sword rejected. 27071_ Critical hit (Burn: +37). 27074_ Slammed into G-67 Veteran. Map ----- +----------------------------------------------------+ | | | | | | | | | | | | | | | | | | | ?????????????????????????????????????????????????? | | #????????????????????????????????????????????????? | | ###??????????????????????????????????????????????? | | ##?????????????????????????????????????????????? | | *"####??????????????????????????????????????????? | | ############???????????????????????????????? | | ### ## #???????????????????????????????? | | =#?# ## #???????????????????????????????? | | ###?# # #???????????????????????????????? | | ????# + #???????????????????????????????? | | ????# # #???????????????????????????????? | | ????# # #???????????????????????????????? | | ????# # /= #???????????????????????????????? | | ????# # h #???????????????????????????????? | | ##### ######+###############????????????????????? | | gg g #????????????????????? | | h l g@g #????????????????????? | | ###+######## ## #######/ #????????????????????? | | ???????????# ## #?????# #????????????????????? | | ???????????# ## #?????# #????????????????????? | | # "????????# ######?????# #????????????????????? | | # """??????# #??????????# #????????????????????? | | ? """??????# #??????????# #????????????????????? | | ?? ??????# #?######???# #????????????????????? | | ??##/####### #? ??#gg#????????????????????? | | ??# # C# "" ??#g #???????????????????? | | ??# # # """ #?# #???????????????????? | | ??# + + "R #?#####???????????????????? | | ??# # # """ *#?????????????????????????? | | ??# # # """ ????#?????????????????????? | | ??# # #? ??????????????????????????? | | ??# # #? ?????#?????????????????????? | | ??# # #?? !??????????????????????????? | | ??# ] # ##?######??????????????????????????? | | ?#### !]! ## ##????#???????????????????????????? | | ?# ! ! #????????????????????????????????? | | ?# !/* % #????????????????????????????????? | | ?# [![ # #?????????#?????????????????????? | | ?#*/][[ ! #??????????????????????????????? | | ?# !/[! %% # #???????#??????????????????????? | | ?# [ %*[ #??#??????????????????????????? | +----------------------------------------------------+ Best States ------------- Heat Dissipation 103 Coolant Potential 65 Energy Generation 64 Energy Capacity 1095 Matter Stores 500 Matter Capacity 500 Sight Range 22 Robot Scan Range 18 Terrain Scan Range 16 Terrain Scan Density 10 ECM Strength 2 Power Amplification 30 Additional Mass Support 9 Base Temperature (-) 200 Armor Coverage 1500 Resistance: KI 20 Resistance: TH 25 Resistance: EM 15 Core Shielding 30 Propulsion Shielding 66 Utility Shielding 33 Weapon Shielding 33 Phase Shifting 5 Evasion (%) 70 Targeting Accuracy 24 Launcher Accuracy 30 Target Analysis 6 Core Analysis 6 Recoil Reduction 6 Particle Charging 25 Offensive Hacking 14 Defensive Hacking 20 Relay Coupler Types 1 Relay Coupler Value 31 Authchip Count 1 Item Schematics ----------------- Huge Storage Unit | -10/Materials | Hacked Cld. Airjet | -7/Factory | Scanalyzed Combat Drone Bay | -7/Data Miner | Free Lgt. Regenerative Plating | -7/Data Miner | Free Cld. Cesium-ion Thruster | -7/Data Miner | Free Gravity Neutralizer | -7/Data Miner | Free Gui. EMP Blaster | -7/Data Miner | Free Gyrokinetic Inverter | -7/Data Miner | Free Imp. Corruption Screen | -7/Data Miner | Free Wave Gun | -7/Data Miner | Free Lrn. Proton Cannon | -7/Data Miner | Free Assault Drone Bay | -5/Zhirov | Free Exp. Heat Sink | -5/Zhirov | Free Exp. Optical Array | -5/Zhirov | Free Imp. Arc Thrower | -5/Zhirov | Free Robot Schematics ------------------ L-41 Fighter | -7/Data Miner | Free W-25 Informer | -7/Data Miner | Free G-50 Soldier | -7/Data Miner | Free H-66 Slayer | -7/Data Miner | Free M-22 Extractor | -7/Data Miner | Free A-15 Conveyor | -7/Data Miner | Free Fabricated ------------ Cld. Airjet | x1 | -7/Factory Cld. Airjet | x1 | -6/Factory Cld. Airjet | x1 | -5/Factory Linear Gravjet | x2 | -5/Factory | Preloaded Lgt. Regenerative Plating | x1 | -3/Research Repaired ---------- Cld. Airjet | 33% | -7/Factory Cld. Airjet | 2% | -5/Factory | Broken Biometal Heavy Treads | 12% | -4/Factory | Broken Adv. Heavy Siege Treads | 12% | -4/Factory Studied --------- Powered Hammer | -7/Factory | Hacked Mic. Nuclear Core | -7/Factory | Hacked Imp. Linear Gravjet | -4/Factory | Hacked Imp. Remote Datajack | -4/Factory | Hacked Hvy. Treads | -4/Factory | Hacked Hvy. Pick | -4/Factory | Hacked Adv. Heavy Siege Treads | -3/Research | Hacked Biometal Medium Treads | -3/Research | Hacked Particle Reactor | -3/Research | Hacked Alien Tech Used ----------------- Transdimensional Reconstructor Integrated Reactor Achievements -------------- Assassin Bumper Bots Fancy Inventory Generalissimo Hehehe Hornet's Nest Immobile And Lovin' It Item+ Join The Dark Side Mindtrick Network Effect Not Today, Chutes Some Acronyms Are Better Than Others Taming Of The Crushers Tank Life That Tickles Tune-up You Will Be Upgraded Challenges ------------ None Game ------ Seed AssaultMicrodissipatorStorm Manual? 0 Play Time 06:35:49 Cumulative 121.6 hours Start 2026.01.20 @ 12:02:12 End 2026.01.21 @ 14:38:16 Sessions 12 Manual Loads 0 Difficulty Rogue Special Mode None Game No. 156 Rogue 151 Adventurer 5 Explorer 0 Win Type - Total 3 Types 2/0/0/1/0/0/0/0/0/0 Lore% 35 Gallery% 57 Achievement% 37 Wizard Run 0 Options --------- Layout 0 ASCII 0 Keyboard 1 Movement Vi Keybinds 0 Fullscreen 2 Font 24/Smallcaps Map View 76x50 Zoom Use 0% Tactical HUD 1 Map Filters NONE Filters NONE Steam 1 RUN: 44dad1be-fd9b-4a7f-8d1e-a27d809b91d8